Workbook

Sheet Wire-to-Air
A1: FEI Calculations per AMCA 208 draft SCD-4 Dated 4/25/17
A3: Instructions:
A4: Please fill the blue colored cells.
A6: Please copy down from row 17.
Q9: Wi Measured
D10: AMCA 208 Annex A | G10: Duty Point | M10: FEPref Calculation
M11: Section 5.2 | Q11: Section 5.3.1
A12: Qty Sold | B12: Model | C12: Size | D12: Fan Category | E12: Test Config | F12: FEI Pressure Basis | G12: Impeller Dia (in.) | H12: Outlet Area (ft²) | I12: Air Density (lb/ft³) | J12: Airflow (cfm) | K12: Fan Static Pressure (in. wg) | L12: Fan Total Pressure (in. wg) | M12: Hi,ref (bhp) | N12: ηtrans,ref | O12: ηmtr,ref | P12: FEPref (kW) | Q12: Wi (kW) | R12: FEI
D13: Circulating | E13: =VLOOKUP(D13,'AMCA 208 Tables'!$A$17:$G$27,5,FALSE) -> E | F13: =VLOOKUP(D13,'AMCA 208 Tables'!$A$17:$G$27,6,FALSE) -> Total | G13: 30 | H13: 8.355 | I13: 0.0933 | J13: 20000 | K13: 4 | L13: =IF(F13="Total",K13+(J13/(1097.8*H13))^2*I13,"-") -> 4.443610966 | M13: =IF(D13="Circulating",($J13+'AMCA 208 Tables'!$I$3)*($L13+'AMCA 208 Tables'!$I$4*(IF($I13=0,0.075,$I13)/0.075))/(6343*'AMCA 208 Tables'!$I$5),(IF(F13="Total",($J13+'AMCA 208 Tables'!$F$3)*($L13+'AMCA 208 Tables'!$F$4*(IF($I13=0,0.075,$I13)/0.075))/(6343*'AMCA 208 Tables'!$F$5),($J13+'AMCA 208 Tables'!$F$3)*($K13+'AMCA 208 Tables'!$F$4*(IF($I13=0,0.075,$I13)/0.075))/(6343*'AMCA 208 Tables'!$F$6)))) -> 63.09394403 | N13: =0.96*(M13/(M13+2.2))^0.05 -> 0.9583562329 | O13: ='AMCA 208 Tables'!F$9*(LOG(M13/N13*0.746))^4+'AMCA 208 Tables'!F$10*(LOG(M13/N13*0.746))^3+'AMCA 208 Tables'!F$11*(LOG(M13/N13*0.746))^2+'AMCA 208 Tables'!F$12*LOG(M13/N13*0.746)+'AMCA 208 Tables'!F$13 -> 0.9487785098 | P13: =M13*(1/N13)*(1/O13)*0.746 -> 51.76481816 | Q13: 18 | R13: =IF(Q13>0,P13/Q13,"-") -> 2.875823231
D14: Circulating | E14: =VLOOKUP(D14,'AMCA 208 Tables'!$A$17:$G$27,5,FALSE) -> E | F14: =VLOOKUP(D14,'AMCA 208 Tables'!$A$17:$G$27,6,FALSE) -> Total | G14: 30 | H14: 8.355 | I14: 0.075 | J14: 20000 | K14: 0.125 | L14: =IF(F14="Total",K14+(J14/(1097.8*H14))^2*I14,"-") -> 0.4816004553 | M14: =IF(D14="Circulating",($J14+'AMCA 208 Tables'!$I$3)*($L14+'AMCA 208 Tables'!$I$4*(IF($I14=0,0.075,$I14)/0.075))/(6343*'AMCA 208 Tables'!$I$5),(IF(F14="Total",($J14+'AMCA 208 Tables'!$F$3)*($L14+'AMCA 208 Tables'!$F$4*(IF($I14=0,0.075,$I14)/0.075))/(6343*'AMCA 208 Tables'!$F$5),($J14+'AMCA 208 Tables'!$F$3)*($K14+'AMCA 208 Tables'!$F$4*(IF($I14=0,0.075,$I14)/0.075))/(6343*'AMCA 208 Tables'!$F$6)))) -> 6.868838244 | N14: =0.96*(M14/(M14+2.2))^0.05 -> 0.946755452 | O14: ='AMCA 208 Tables'!F$9*(LOG(M14/N14*0.746))^4+'AMCA 208 Tables'!F$10*(LOG(M14/N14*0.746))^3+'AMCA 208 Tables'!F$11*(LOG(M14/N14*0.746))^2+'AMCA 208 Tables'!F$12*LOG(M14/N14*0.746)+'AMCA 208 Tables'!F$13 -> 0.9124425672 | P14: =M14*(1/N14)*(1/O14)*0.746 -> 5.931694346 | Q14: 2.25 | R14: =IF(Q14>0,P14/Q14,"-") -> 2.636308598
D15: Circulating | E15: =VLOOKUP(D15,'AMCA 208 Tables'!$A$17:$G$27,5,FALSE) -> E | F15: =VLOOKUP(D15,'AMCA 208 Tables'!$A$17:$G$27,6,FALSE) -> Total | G15: 36 | H15: 7.07 | I15: 0.075 | J15: 20000 | K15: 0.25 | L15: 0.7480076043 | M15: =IF(D15="Circulating",($J15+'AMCA 208 Tables'!$I$3)*($L15+'AMCA 208 Tables'!$I$4*(IF($I15=0,0.075,$I15)/0.075))/(6343*'AMCA 208 Tables'!$I$5),(IF(F15="Total",($J15+'AMCA 208 Tables'!$F$3)*($L15+'AMCA 208 Tables'!$F$4*(IF($I15=0,0.075,$I15)/0.075))/(6343*'AMCA 208 Tables'!$F$5),($J15+'AMCA 208 Tables'!$F$3)*($K15+'AMCA 208 Tables'!$F$4*(IF($I15=0,0.075,$I15)/0.075))/(6343*'AMCA 208 Tables'!$F$6)))) -> 10.64885455 | N15: =0.96*(M15/(M15+2.2))^0.05 -> 0.9510276794 | O15: ='AMCA 208 Tables'!F$9*(LOG(M15/N15*0.746))^4+'AMCA 208 Tables'!F$10*(LOG(M15/N15*0.746))^3+'AMCA 208 Tables'!F$11*(LOG(M15/N15*0.746))^2+'AMCA 208 Tables'!F$12*LOG(M15/N15*0.746)+'AMCA 208 Tables'!F$13 -> 0.9218556099 | P15: =M15*(1/N15)*(1/O15)*0.746 -> 9.061198876 | R15: -
D16: Circulating | E16: =VLOOKUP(D16,'AMCA 208 Tables'!$A$17:$G$27,5,FALSE) -> E | F16: =VLOOKUP(D16,'AMCA 208 Tables'!$A$17:$G$27,6,FALSE) -> Total | G16: 42.25 | H16: 8.98 | I16: 0.075 | J16: 25525 | K16: 0 | L16: 0.5027981125 | M16: =IF(D16="Circulating",($J16+'AMCA 208 Tables'!$I$3)*($L16+'AMCA 208 Tables'!$I$4*(IF($I16=0,0.075,$I16)/0.075))/(6343*'AMCA 208 Tables'!$I$5),(IF(F16="Total",($J16+'AMCA 208 Tables'!$F$3)*($L16+'AMCA 208 Tables'!$F$4*(IF($I16=0,0.075,$I16)/0.075))/(6343*'AMCA 208 Tables'!$F$5),($J16+'AMCA 208 Tables'!$F$3)*($K16+'AMCA 208 Tables'!$F$4*(IF($I16=0,0.075,$I16)/0.075))/(6343*'AMCA 208 Tables'!$F$6)))) -> 8.269944869 | N16: 0.9487442221 | O16: ='AMCA 208 Tables'!F$9*(LOG(M16/N16*0.746))^4+'AMCA 208 Tables'!F$10*(LOG(M16/N16*0.746))^3+'AMCA 208 Tables'!F$11*(LOG(M16/N16*0.746))^2+'AMCA 208 Tables'!F$12*LOG(M16/N16*0.746)+'AMCA 208 Tables'!F$13 -> 0.9166350605 | P16: 7.094075941 | R16: -
D17: Circulating | E17: =VLOOKUP(D17,'AMCA 208 Tables'!$A$17:$G$27,5,FALSE) -> E | F17: =VLOOKUP(D17,'AMCA 208 Tables'!$A$17:$G$27,6,FALSE) -> Total | G17: 27 | H17: 5.55 | I17: 0.075 | J17: 16000 | K17: 7.62 | L17: 8.137212258 | M17: =IF(D17="Circulating",($J17+'AMCA 208 Tables'!$I$3)*($L17+'AMCA 208 Tables'!$I$4*(IF($I17=0,0.075,$I17)/0.075))/(6343*'AMCA 208 Tables'!$I$5),(IF(F17="Total",($J17+'AMCA 208 Tables'!$F$3)*($L17+'AMCA 208 Tables'!$F$4*(IF($I17=0,0.075,$I17)/0.075))/(6343*'AMCA 208 Tables'!$F$5),($J17+'AMCA 208 Tables'!$F$3)*($K17+'AMCA 208 Tables'!$F$4*(IF($I17=0,0.075,$I17)/0.075))/(6343*'AMCA 208 Tables'!$F$6)))) -> 102.6607253 | N17: 0.9589827751 | O17: ='AMCA 208 Tables'!F$9*(LOG(M17/N17*0.746))^4+'AMCA 208 Tables'!F$10*(LOG(M17/N17*0.746))^3+'AMCA 208 Tables'!F$11*(LOG(M17/N17*0.746))^2+'AMCA 208 Tables'!F$12*LOG(M17/N17*0.746)+'AMCA 208 Tables'!F$13 -> 0.9543521996 | P17: 83.68038514 | R17: -
D18: Circulating | E18: =VLOOKUP(D18,'AMCA 208 Tables'!$A$17:$G$27,5,FALSE) -> E | F18: =VLOOKUP(D18,'AMCA 208 Tables'!$A$17:$G$27,6,FALSE) -> Total | G18: 240 | H18: 314.1592654 | I18: 0.075 | J18: 150000 | L18: =IF(F18="Total",K18+(J18/(1097.8*H18))^2*I18,"-") -> 0.01418722914 | M18: =IF(D18="Circulating",($J18+'AMCA 208 Tables'!$I$3)*($L18+'AMCA 208 Tables'!$I$4*(IF($I18=0,0.075,$I18)/0.075))/(6343*'AMCA 208 Tables'!$I$5),(IF(F18="Total",($J18+'AMCA 208 Tables'!$F$3)*($L18+'AMCA 208 Tables'!$F$4*(IF($I18=0,0.075,$I18)/0.075))/(6343*'AMCA 208 Tables'!$F$5),($J18+'AMCA 208 Tables'!$F$3)*($K18+'AMCA 208 Tables'!$F$4*(IF($I18=0,0.075,$I18)/0.075))/(6343*'AMCA 208 Tables'!$F$6)))) -> 1.091786236 | N18: =0.96*(M18/(M18+2.2))^0.05 -> 0.9084615117 | O18: ='AMCA 208 Tables'!F$9*(LOG(M18/N18*0.746))^4+'AMCA 208 Tables'!F$10*(LOG(M18/N18*0.746))^3+'AMCA 208 Tables'!F$11*(LOG(M18/N18*0.746))^2+'AMCA 208 Tables'!F$12*LOG(M18/N18*0.746)+'AMCA 208 Tables'!F$13 -> 0.8441766867 | P18: =M18*(1/N18)*(1/O18)*0.746 -> 1.06202944 | Q18: 0.75 | R18: =IF(Q18>0,P18/Q18,"-") -> 1.416039253
D19: Circulating | E19: =VLOOKUP(D19,'AMCA 208 Tables'!$A$17:$G$27,5,FALSE) -> E | F19: =VLOOKUP(D19,'AMCA 208 Tables'!$A$17:$G$27,6,FALSE) -> Total | G19: 96 | H19: 50.26548246 | I19: 0.075 | J19: 29000 | L19: 0.02071433977 | M19: =IF(D19="Circulating",($J19+'AMCA 208 Tables'!$I$3)*($L19+'AMCA 208 Tables'!$I$4*(IF($I19=0,0.075,$I19)/0.075))/(6343*'AMCA 208 Tables'!$I$5),(IF(F19="Total",($J19+'AMCA 208 Tables'!$F$3)*($L19+'AMCA 208 Tables'!$F$4*(IF($I19=0,0.075,$I19)/0.075))/(6343*'AMCA 208 Tables'!$F$5),($J19+'AMCA 208 Tables'!$F$3)*($K19+'AMCA 208 Tables'!$F$4*(IF($I19=0,0.075,$I19)/0.075))/(6343*'AMCA 208 Tables'!$F$6)))) -> 0.4117315504 | N19: 0.8752971485 | O19: ='AMCA 208 Tables'!F$9*(LOG(M19/N19*0.746))^4+'AMCA 208 Tables'!F$10*(LOG(M19/N19*0.746))^3+'AMCA 208 Tables'!F$11*(LOG(M19/N19*0.746))^2+'AMCA 208 Tables'!F$12*LOG(M19/N19*0.746)+'AMCA 208 Tables'!F$13 -> 0.7755701421 | P19: 0.4524560297 | Q19: 0.58 | R19: 0.7800966029
D20: Circulating | E20: =VLOOKUP(D20,'AMCA 208 Tables'!$A$17:$G$27,5,FALSE) -> E | F20: =VLOOKUP(D20,'AMCA 208 Tables'!$A$17:$G$27,6,FALSE) -> Total | G20: 72 | H20: 28.27433388 | I20: 0.075 | J20: 10500 | L20: 0.008582397876 | M20: =IF(D20="Circulating",($J20+'AMCA 208 Tables'!$I$3)*($L20+'AMCA 208 Tables'!$I$4*(IF($I20=0,0.075,$I20)/0.075))/(6343*'AMCA 208 Tables'!$I$5),(IF(F20="Total",($J20+'AMCA 208 Tables'!$F$3)*($L20+'AMCA 208 Tables'!$F$4*(IF($I20=0,0.075,$I20)/0.075))/(6343*'AMCA 208 Tables'!$F$5),($J20+'AMCA 208 Tables'!$F$3)*($K20+'AMCA 208 Tables'!$F$4*(IF($I20=0,0.075,$I20)/0.075))/(6343*'AMCA 208 Tables'!$F$6)))) -> 0.115751042 | N20: 0.8264429611 | O20: ='AMCA 208 Tables'!F$9*(LOG(M20/N20*0.746))^4+'AMCA 208 Tables'!F$10*(LOG(M20/N20*0.746))^3+'AMCA 208 Tables'!F$11*(LOG(M20/N20*0.746))^2+'AMCA 208 Tables'!F$12*LOG(M20/N20*0.746)+'AMCA 208 Tables'!F$13 -> 0.6293606473 | P20: 0.1660165054 | Q20: 0.111 | R20: 1.495644192

Sheet Fan with Regulated Motor
A1: FEI Calculations
A3: Instructions:
A4: Please fill the blue colored cells.
A6: Only ODP and TEFC motors are considered.
A7: Please copy down from row 17.
A8: Assumption: VFD capacity is same as motor capacity when VFD capacity is not given.
Q9: Hi Measured
D10: AMCA 208 Annex A | G10: Duty Point | M10: FEPref Calculation | S10: Fan paired with regulated motor (US Regulation only)
M11: Section 5.2 | S11: Section 5.3.3 (uses AMCA 207)
A12: Qty Sold | B12: Model | C12: Size | D12: Fan Category | E12: Test Config | F12: FEI Pressure Basis | G12: Impeller Dia (in.) | H12: Outlet Area (ft²) | I12: Air Density (lb/ft³) | J12: Airflow (cfm) | K12: Fan Static Pressure (in. wg) | L12: Fan Total Pressure (in. wg) | M12: Hi,ref (bhp) | N12: ηtrans,ref | O12: ηmtr,ref | P12: FEPref (kW) | Q12: Hi,act (bhp) | R12: Drive Type | S12: Motor Size (hp) | T12: Motor Encl. | U12: No. Poles | V12: Include VFD? | W12: VFD Capacity (hp) | X12: ηtrans,act | Y12: ηmtr,act | Z12: FEPact (kW) | AA12: FEI
B13: ABC | C13: 300 | D13: Centrifugal PRV Exhaust | E13: =VLOOKUP(D13,'AMCA 208 Tables'!$A$17:$G$27,5,FALSE) -> A or C | F13: =VLOOKUP(D13,'AMCA 208 Tables'!$A$17:$G$27,6,FALSE) -> Static | G13: 31.5 | H13: 7.88 | I13: 0.075 | J13: 5000 | K13: 2 | L13: =IF(F13="Total",K13+(J13/(1097.8*H13))^2*I13,"-") -> - | M13: =IF(D13="Circulating",($J13+'AMCA 208 Tables'!$I$3)*($L13+'AMCA 208 Tables'!$I$4*(IF($I13=0,0.075,$I13)/0.075))/(6343*'AMCA 208 Tables'!$I$5),(IF(F13="Total",($J13+'AMCA 208 Tables'!$F$3)*($L13+'AMCA 208 Tables'!$F$4*(IF($I13=0,0.075,$I13)/0.075))/(6343*'AMCA 208 Tables'!$F$5),($J13+'AMCA 208 Tables'!$F$3)*($K13+'AMCA 208 Tables'!$F$4*(IF($I13=0,0.075,$I13)/0.075))/(6343*'AMCA 208 Tables'!$F$6)))) -> 3.310736245 | N13: =0.96*(M13/(M13+2.2))^0.05 -> 0.9358515865 | O13: ='AMCA 208 Tables'!F$9*(LOG(M13/N13*0.746))^4+'AMCA 208 Tables'!F$10*(LOG(M13/N13*0.746))^3+'AMCA 208 Tables'!F$11*(LOG(M13/N13*0.746))^2+'AMCA 208 Tables'!F$12*LOG(M13/N13*0.746)+'AMCA 208 Tables'!F$13 -> 0.8921508461 | P13: =M13*(1/N13)*(1/O13)*0.746 -> 2.958136009 | Q13: 4.04 | R13: V-Belt | S13: 3 | T13: ODP | U13: 4 | V13: No | W13: 10 | X13: =IF($R13="Direct",1,IF($R13="Coupling",0.98,IF($R13="V-Belt",0.96*(Q13/(Q13+2.2))^0.05,IF($R13="Synch Belt",IF(Q13<=1.34,0.94,IF(Q13<=6.7,(0.00746*Q13+0.93),0.98)),"Missing Transmission Type")))) -> 0.939357856 | Y13: =IF(Q13/X13>1.5*S13, "Overload", IF(AND(V13="Yes",ISNUMBER(W13)),EtaMtrAct(Q13/X13,S13,W13,T13,U13,V13),EtaMtrAct(Q13/X13,S13,S13,T13,U13,V13))) -> 0.876568045 | Z13: =IF(Q13/X13>1.5*S13, "Overload",Q13*(1/X13)*(1/Y13)*0.746) -> 3.660188787 | AA13: =IF(Q13/X13>1.5*S13, "Overload",P13/Z13) -> 0.8081921949
B14: ABC | C14: 540 | D14: Centrifugal Unhoused | E14: =VLOOKUP(D14,'AMCA 208 Tables'!$A$17:$G$27,5,FALSE) -> A | F14: =VLOOKUP(D14,'AMCA 208 Tables'!$A$17:$G$27,6,FALSE) -> Static | G14: 54 | I14: 0.075 | J14: 40131 | K14: 0.125 | L14: =IF(F14="Total",K14+(J14/(1097.8*H14))^2*I14,"-") -> - | M14: =IF(D14="Circulating",($J14+'AMCA 208 Tables'!$I$3)*($L14+'AMCA 208 Tables'!$I$4*(IF($I14=0,0.075,$I14)/0.075))/(6343*'AMCA 208 Tables'!$I$5),(IF(F14="Total",($J14+'AMCA 208 Tables'!$F$3)*($L14+'AMCA 208 Tables'!$F$4*(IF($I14=0,0.075,$I14)/0.075))/(6343*'AMCA 208 Tables'!$F$5),($J14+'AMCA 208 Tables'!$F$3)*($K14+'AMCA 208 Tables'!$F$4*(IF($I14=0,0.075,$I14)/0.075))/(6343*'AMCA 208 Tables'!$F$6)))) -> 5.570451679 | N14: =0.96*(M14/(M14+2.2))^0.05 -> 0.9441553109 | O14: ='AMCA 208 Tables'!F$9*(LOG(M14/N14*0.746))^4+'AMCA 208 Tables'!F$10*(LOG(M14/N14*0.746))^3+'AMCA 208 Tables'!F$11*(LOG(M14/N14*0.746))^2+'AMCA 208 Tables'!F$12*LOG(M14/N14*0.746)+'AMCA 208 Tables'!F$13 -> 0.9072889531 | P14: =M14*(1/N14)*(1/O14)*0.746 -> 4.85109942 | Q14: 2.762 | R14: V-Belt | S14: 3 | T14: ODP | U14: 4 | V14: No | W14: 7.5 | X14: =IF($R14="Direct",1,IF($R14="Coupling",0.98,IF($R14="V-Belt",0.96*(Q14/(Q14+2.2))^0.05,IF($R14="Synch Belt",IF(Q14<=1.34,0.94,IF(Q14<=6.7,(0.00746*Q14+0.93),0.98)),"Missing Transmission Type")))) -> 0.9322868935 | Y14: =IF(Q14/X14>1.5*S14, "Overload", IF(AND(V14="Yes",ISNUMBER(W14)),EtaMtrAct(Q14/X14,S14,W14,T14,U14,V14),EtaMtrAct(Q14/X14,S14,S14,T14,U14,V14))) -> 0.8951247254 | Z14: =IF(Q14/X14>1.5*S14, "Overload",Q14*(1/X14)*(1/Y14)*0.746) -> 2.46904707 | AA14: =IF(Q14/X14>1.5*S14, "Overload",P14/Z14) -> 1.964765872
B15: ABC | C15: 600 | D15: Centrifugal Unhoused | E15: =VLOOKUP(D15,'AMCA 208 Tables'!$A$17:$G$27,5,FALSE) -> A | F15: =VLOOKUP(D15,'AMCA 208 Tables'!$A$17:$G$27,6,FALSE) -> Static | G15: 60 | I15: 0.075 | J15: 39858 | K15: 0.125 | L15: - | M15: =IF(D15="Circulating",($J15+'AMCA 208 Tables'!$I$3)*($L15+'AMCA 208 Tables'!$I$4*(IF($I15=0,0.075,$I15)/0.075))/(6343*'AMCA 208 Tables'!$I$5),(IF(F15="Total",($J15+'AMCA 208 Tables'!$F$3)*($L15+'AMCA 208 Tables'!$F$4*(IF($I15=0,0.075,$I15)/0.075))/(6343*'AMCA 208 Tables'!$F$5),($J15+'AMCA 208 Tables'!$F$3)*($K15+'AMCA 208 Tables'!$F$4*(IF($I15=0,0.075,$I15)/0.075))/(6343*'AMCA 208 Tables'!$F$6)))) -> 5.532792054 | N15: =0.96*(M15/(M15+2.2))^0.05 -> 0.9440644279 | O15: ='AMCA 208 Tables'!F$9*(LOG(M15/N15*0.746))^4+'AMCA 208 Tables'!F$10*(LOG(M15/N15*0.746))^3+'AMCA 208 Tables'!F$11*(LOG(M15/N15*0.746))^2+'AMCA 208 Tables'!F$12*LOG(M15/N15*0.746)+'AMCA 208 Tables'!F$13 -> 0.9071139645 | P15: =M15*(1/N15)*(1/O15)*0.746 -> 4.819696473 | Q15: 4.04 | R15: V-Belt | S15: 5 | T15: TEFC | U15: 4 | V15: No | W15: 5 | X15: 0.939357856 | Y15: =IF(Q15/X15>1.5*S15, "Overload", IF(AND(V15="Yes",ISNUMBER(W15)),EtaMtrAct(Q15/X15,S15,W15,T15,U15,V15),EtaMtrAct(Q15/X15,S15,S15,T15,U15,V15))) -> 0.8997720057 | Z15: =IF(Q15/X15>1.5*S15, "Overload",Q15*(1/X15)*(1/Y15)*0.746) -> 3.565797234 | AA15: =IF(Q15/X15>1.5*S15, "Overload",P15/Z15) -> 1.351646254
B16: ABC | C16: 720 | D16: Centrifugal Unhoused | E16: =VLOOKUP(D16,'AMCA 208 Tables'!$A$17:$G$27,5,FALSE) -> A | F16: =VLOOKUP(D16,'AMCA 208 Tables'!$A$17:$G$27,6,FALSE) -> Static | G16: 72 | I16: 0.075 | J16: 39308 | K16: 0.125 | L16: - | M16: =IF(D16="Circulating",($J16+'AMCA 208 Tables'!$I$3)*($L16+'AMCA 208 Tables'!$I$4*(IF($I16=0,0.075,$I16)/0.075))/(6343*'AMCA 208 Tables'!$I$5),(IF(F16="Total",($J16+'AMCA 208 Tables'!$F$3)*($L16+'AMCA 208 Tables'!$F$4*(IF($I16=0,0.075,$I16)/0.075))/(6343*'AMCA 208 Tables'!$F$5),($J16+'AMCA 208 Tables'!$F$3)*($K16+'AMCA 208 Tables'!$F$4*(IF($I16=0,0.075,$I16)/0.075))/(6343*'AMCA 208 Tables'!$F$6)))) -> 5.456921015 | N16: 0.9438780966 | O16: ='AMCA 208 Tables'!F$9*(LOG(M16/N16*0.746))^4+'AMCA 208 Tables'!F$10*(LOG(M16/N16*0.746))^3+'AMCA 208 Tables'!F$11*(LOG(M16/N16*0.746))^2+'AMCA 208 Tables'!F$12*LOG(M16/N16*0.746)+'AMCA 208 Tables'!F$13 -> 0.906756126 | P16: 4.75641882 | Q16: 2.762 | R16: V-Belt | S16: 3 | T16: TEFC | U16: 4 | V16: No | W16: 3 | X16: 0.9322868935 | Y16: =IF(Q16/X16>1.5*S16, "Overload", IF(AND(V16="Yes",ISNUMBER(W16)),EtaMtrAct(Q16/X16,S16,W16,T16,U16,V16),EtaMtrAct(Q16/X16,S16,S16,T16,U16,V16))) -> 0.8951247254 | Z16: 2.46904707 | AA16: =IF(Q16/X16>1.5*S16, "Overload",P16/Z16) -> 1.926418851

Sheet Fan without motor
A1: FEI Calculations
A3: Instructions:
A4: Please fill the blue colored cells.
A6: Only ODP and TEFC motors are considered.
A7: Please copy down from row 17.
Q9: Hi Measured
D10: AMCA 208 Annex A | G10: Duty Point | M10: FEPref Calculation | S10: Fan with unregulated or w/o motor
M11: Section 5.2 | S11: Section 5.3.4 (default motor efficiency)
A12: Qty Sold | B12: Model | C12: Size | D12: Fan Category | E12: Test Config | F12: FEI Pressure Basis | G12: Impeller Dia (in.) | H12: Outlet Area (ft²) | I12: Air Density (lb/ft³) | J12: Airflow (cfm) | K12: Fan Static Pressure (in. wg) | L12: Fan Total Pressure (in. wg) | M12: Hi,ref (bhp) | N12: ηtrans,ref | O12: ηmtr,ref | P12: FEPref (kW) | Q12: Hi,act (bhp) | R12: Drive Type | S12: ηtrans,def | T12: ηmtr,def | U12: FEPact (kW) | V12: FEI
B13: ABC | C13: 300 | D13: Centrifugal PRV Exhaust | E13: =VLOOKUP(D13,'AMCA 208 Tables'!$A$17:$G$27,5,FALSE) -> A or C | F13: =VLOOKUP(D13,'AMCA 208 Tables'!$A$17:$G$27,6,FALSE) -> Static | G13: 31.5 | H13: 7.88 | I13: 0.075 | J13: 5000 | K13: 2 | L13: =IF(F13="Total",K13+(J13/(1097.8*H13))^2*I13,"-") -> - | M13: =IF(D13="Circulating",($J13+'AMCA 208 Tables'!$I$3)*($L13+'AMCA 208 Tables'!$I$4*(IF($I13=0,0.075,$I13)/0.075))/(6343*'AMCA 208 Tables'!$I$5),(IF(F13="Total",($J13+'AMCA 208 Tables'!$F$3)*($L13+'AMCA 208 Tables'!$F$4*(IF($I13=0,0.075,$I13)/0.075))/(6343*'AMCA 208 Tables'!$F$5),($J13+'AMCA 208 Tables'!$F$3)*($K13+'AMCA 208 Tables'!$F$4*(IF($I13=0,0.075,$I13)/0.075))/(6343*'AMCA 208 Tables'!$F$6)))) -> 3.310736245 | N13: =0.96*(M13/(M13+2.2))^0.05 -> 0.9358515865 | O13: ='AMCA 208 Tables'!F$9*(LOG(M13/N13*0.746))^4+'AMCA 208 Tables'!F$10*(LOG(M13/N13*0.746))^3+'AMCA 208 Tables'!F$11*(LOG(M13/N13*0.746))^2+'AMCA 208 Tables'!F$12*LOG(M13/N13*0.746)+'AMCA 208 Tables'!F$13 -> 0.8921508461 | P13: =M13*(1/N13)*(1/O13)*0.746 -> 2.958136009 | Q13: 2.47 | R13: V-Belt | S13: =IF($R13="Direct",1,IF($R13="Coupling",0.98,IF($R13="V-Belt",0.96*(Q13/(Q13+2.2))^0.05,IF($R13="Synch Belt",IF(Q13<=1.34,0.94,IF(Q13<=6.7,(0.00746*Q13+0.93),0.98)),"Missing Transmission Type")))) -> 0.9299085411 | T13: ='AMCA 208 Tables'!F$9*(LOG(Q13/S13*0.746))^4+'AMCA 208 Tables'!F$10*(LOG(Q13/S13*0.746))^3+'AMCA 208 Tables'!F$11*(LOG(Q13/S13*0.746))^2+'AMCA 208 Tables'!F$12*LOG(Q13/S13*0.746)+'AMCA 208 Tables'!F$13 -> 0.8818451736 | U13: =Q13*(1/S13)*(1/T13)*0.746 -> 2.247000669 | V13: =P13/U13 -> 1.316482033
B14: ABC | C14: 210 | D14: Centrifugal PRV Exhaust | E14: =VLOOKUP(D14,'AMCA 208 Tables'!$A$17:$G$27,5,FALSE) -> A or C | F14: =VLOOKUP(D14,'AMCA 208 Tables'!$A$17:$G$27,6,FALSE) -> Static | G14: 38.38 | I14: 0.075 | J14: 5000 | K14: 2 | L14: =IF(F14="Total",K14+(J14/(1097.8*H14))^2*I14,"-") -> - | M14: =IF(D14="Circulating",($J14+'AMCA 208 Tables'!$I$3)*($L14+'AMCA 208 Tables'!$I$4*(IF($I14=0,0.075,$I14)/0.075))/(6343*'AMCA 208 Tables'!$I$5),(IF(F14="Total",($J14+'AMCA 208 Tables'!$F$3)*($L14+'AMCA 208 Tables'!$F$4*(IF($I14=0,0.075,$I14)/0.075))/(6343*'AMCA 208 Tables'!$F$5),($J14+'AMCA 208 Tables'!$F$3)*($K14+'AMCA 208 Tables'!$F$4*(IF($I14=0,0.075,$I14)/0.075))/(6343*'AMCA 208 Tables'!$F$6)))) -> 3.310736245 | N14: =0.96*(M14/(M14+2.2))^0.05 -> 0.9358515865 | O14: ='AMCA 208 Tables'!F$9*(LOG(M14/N14*0.746))^4+'AMCA 208 Tables'!F$10*(LOG(M14/N14*0.746))^3+'AMCA 208 Tables'!F$11*(LOG(M14/N14*0.746))^2+'AMCA 208 Tables'!F$12*LOG(M14/N14*0.746)+'AMCA 208 Tables'!F$13 -> 0.8921508461 | P14: =M14*(1/N14)*(1/O14)*0.746 -> 2.958136009 | Q14: 2.9 | R14: V-Belt | S14: =IF($R14="Direct",1,IF($R14="Coupling",0.98,IF($R14="V-Belt",0.96*(Q14/(Q14+2.2))^0.05,IF($R14="Synch Belt",IF(Q14<=1.34,0.94,IF(Q14<=6.7,(0.00746*Q14+0.93),0.98)),"Missing Transmission Type")))) -> 0.9332814292 | T14: ='AMCA 208 Tables'!F$9*(LOG(Q14/S14*0.746))^4+'AMCA 208 Tables'!F$10*(LOG(Q14/S14*0.746))^3+'AMCA 208 Tables'!F$11*(LOG(Q14/S14*0.746))^2+'AMCA 208 Tables'!F$12*LOG(Q14/S14*0.746)+'AMCA 208 Tables'!F$13 -> 0.8876692044 | U14: 2.611397884 | V14: =P14/U14 -> 1.132778742
B15: ABC | C15: 903 | D15: Axial Inline | E15: =VLOOKUP(D15,'AMCA 208 Tables'!$A$17:$G$27,5,FALSE) -> B or D | F15: =VLOOKUP(D15,'AMCA 208 Tables'!$A$17:$G$27,6,FALSE) -> Total | G15: 13.65 | H15: 1.036 | I15: 0.075 | J15: 8000 | K15: 1 | L15: 4.710866013 | M15: =IF(D15="Circulating",($J15+'AMCA 208 Tables'!$I$3)*($L15+'AMCA 208 Tables'!$I$4*(IF($I15=0,0.075,$I15)/0.075))/(6343*'AMCA 208 Tables'!$I$5),(IF(F15="Total",($J15+'AMCA 208 Tables'!$F$3)*($L15+'AMCA 208 Tables'!$F$4*(IF($I15=0,0.075,$I15)/0.075))/(6343*'AMCA 208 Tables'!$F$5),($J15+'AMCA 208 Tables'!$F$3)*($K15+'AMCA 208 Tables'!$F$4*(IF($I15=0,0.075,$I15)/0.075))/(6343*'AMCA 208 Tables'!$F$6)))) -> 10.07186271 | N15: 0.9505636409 | O15: ='AMCA 208 Tables'!F$9*(LOG(M15/N15*0.746))^4+'AMCA 208 Tables'!F$10*(LOG(M15/N15*0.746))^3+'AMCA 208 Tables'!F$11*(LOG(M15/N15*0.746))^2+'AMCA 208 Tables'!F$12*LOG(M15/N15*0.746)+'AMCA 208 Tables'!F$13 -> 0.920749687 | P15: 8.584714297 | Q15: 2.61 | R15: Direct | S15: 1 | T15: ='AMCA 208 Tables'!F$9*(LOG(Q15/S15*0.746))^4+'AMCA 208 Tables'!F$10*(LOG(Q15/S15*0.746))^3+'AMCA 208 Tables'!F$11*(LOG(Q15/S15*0.746))^2+'AMCA 208 Tables'!F$12*LOG(Q15/S15*0.746)+'AMCA 208 Tables'!F$13 -> 0.8811650488 | U15: 2.209642793 | V15: =P15/U15 -> 3.885114066
B16: ABC | C16: 160 | D16: Centrifugal PRV Exhaust | E16: =VLOOKUP(D16,'AMCA 208 Tables'!$A$17:$G$27,5,FALSE) -> A or C | F16: =VLOOKUP(D16,'AMCA 208 Tables'!$A$17:$G$27,6,FALSE) -> Static | G16: 16.75 | H16: 2.87 | I16: 0.075 | J16: 2000 | K16: 0.125 | L16: - | M16: =IF(D16="Circulating",($J16+'AMCA 208 Tables'!$I$3)*($L16+'AMCA 208 Tables'!$I$4*(IF($I16=0,0.075,$I16)/0.075))/(6343*'AMCA 208 Tables'!$I$5),(IF(F16="Total",($J16+'AMCA 208 Tables'!$F$3)*($L16+'AMCA 208 Tables'!$F$4*(IF($I16=0,0.075,$I16)/0.075))/(6343*'AMCA 208 Tables'!$F$5),($J16+'AMCA 208 Tables'!$F$3)*($K16+'AMCA 208 Tables'!$F$4*(IF($I16=0,0.075,$I16)/0.075))/(6343*'AMCA 208 Tables'!$F$6)))) -> 0.3103815229 | N16: 0.8647270399 | O16: ='AMCA 208 Tables'!F$9*(LOG(M16/N16*0.746))^4+'AMCA 208 Tables'!F$10*(LOG(M16/N16*0.746))^3+'AMCA 208 Tables'!F$11*(LOG(M16/N16*0.746))^2+'AMCA 208 Tables'!F$12*LOG(M16/N16*0.746)+'AMCA 208 Tables'!F$13 -> 0.7494101277 | P16: 0.3573025286 | Q16: 0.19 | R16: Direct | S16: 1 | T16: ='AMCA 208 Tables'!F$9*(LOG(Q16/S16*0.746))^4+'AMCA 208 Tables'!F$10*(LOG(Q16/S16*0.746))^3+'AMCA 208 Tables'!F$11*(LOG(Q16/S16*0.746))^2+'AMCA 208 Tables'!F$12*LOG(Q16/S16*0.746)+'AMCA 208 Tables'!F$13 -> 0.6737271412 | U16: 0.2103819059 | V16: =P16/U16 -> 1.698351991
B17: ABC | C17: 300 | D17: Centrifugal Housed | E17: =VLOOKUP(D17,'AMCA 208 Tables'!$A$17:$G$27,5,FALSE) -> B or D | F17: =VLOOKUP(D17,'AMCA 208 Tables'!$A$17:$G$27,6,FALSE) -> Total | G17: 31.5 | H17: 9.23 | I17: 0.075 | J17: 5000 | K17: 2 | L17: 2.018262129 | M17: =IF(D17="Circulating",($J17+'AMCA 208 Tables'!$I$3)*($L17+'AMCA 208 Tables'!$I$4*(IF($I17=0,0.075,$I17)/0.075))/(6343*'AMCA 208 Tables'!$I$5),(IF(F17="Total",($J17+'AMCA 208 Tables'!$F$3)*($L17+'AMCA 208 Tables'!$F$4*(IF($I17=0,0.075,$I17)/0.075))/(6343*'AMCA 208 Tables'!$F$5),($J17+'AMCA 208 Tables'!$F$3)*($K17+'AMCA 208 Tables'!$F$4*(IF($I17=0,0.075,$I17)/0.075))/(6343*'AMCA 208 Tables'!$F$6)))) -> 3.032662152 | N17: 0.9341708252 | O17: ='AMCA 208 Tables'!F$9*(LOG(M17/N17*0.746))^4+'AMCA 208 Tables'!F$10*(LOG(M17/N17*0.746))^3+'AMCA 208 Tables'!F$11*(LOG(M17/N17*0.746))^2+'AMCA 208 Tables'!F$12*LOG(M17/N17*0.746)+'AMCA 208 Tables'!F$13 -> 0.8892143239 | P17: 2.723517116 | Q17: 2.42 | R17: V-Belt | S17: 0.9294582841 | T17: ='AMCA 208 Tables'!F$9*(LOG(Q17/S17*0.746))^4+'AMCA 208 Tables'!F$10*(LOG(Q17/S17*0.746))^3+'AMCA 208 Tables'!F$11*(LOG(Q17/S17*0.746))^2+'AMCA 208 Tables'!F$12*LOG(Q17/S17*0.746)+'AMCA 208 Tables'!F$13 -> 0.8810703583 | U17: 2.204518259 | V17: =P17/U17 -> 1.235425066
B18: ABC | C18: 240 | D18: Centrifugal Inline | E18: =VLOOKUP(D18,'AMCA 208 Tables'!$A$17:$G$27,5,FALSE) -> B or D | F18: =VLOOKUP(D18,'AMCA 208 Tables'!$A$17:$G$27,6,FALSE) -> Total | G18: 27.95 | H18: 6.07 | I18: 0.075 | J18: 5000 | K18: 2 | L18: 2.042225756 | M18: =IF(D18="Circulating",($J18+'AMCA 208 Tables'!$I$3)*($L18+'AMCA 208 Tables'!$I$4*(IF($I18=0,0.075,$I18)/0.075))/(6343*'AMCA 208 Tables'!$I$5),(IF(F18="Total",($J18+'AMCA 208 Tables'!$F$3)*($L18+'AMCA 208 Tables'!$F$4*(IF($I18=0,0.075,$I18)/0.075))/(6343*'AMCA 208 Tables'!$F$5),($J18+'AMCA 208 Tables'!$F$3)*($K18+'AMCA 208 Tables'!$F$4*(IF($I18=0,0.075,$I18)/0.075))/(6343*'AMCA 208 Tables'!$F$6)))) -> 3.06271414 | N18: 0.9343639354 | O18: ='AMCA 208 Tables'!F$9*(LOG(M18/N18*0.746))^4+'AMCA 208 Tables'!F$10*(LOG(M18/N18*0.746))^3+'AMCA 208 Tables'!F$11*(LOG(M18/N18*0.746))^2+'AMCA 208 Tables'!F$12*LOG(M18/N18*0.746)+'AMCA 208 Tables'!F$13 -> 0.8895505317 | P18: 2.748897842 | Q18: 2.72 | R18: V-Belt | S18: 0.9319689065 | T18: ='AMCA 208 Tables'!F$9*(LOG(Q18/S18*0.746))^4+'AMCA 208 Tables'!F$10*(LOG(Q18/S18*0.746))^3+'AMCA 208 Tables'!F$11*(LOG(Q18/S18*0.746))^2+'AMCA 208 Tables'!F$12*LOG(Q18/S18*0.746)+'AMCA 208 Tables'!F$13 -> 0.8853973991 | U18: 2.459054004 | V18: =P18/U18 -> 1.117868024
B19: ABC | C19: 36 | D19: Centrifugal PRV Exhaust | E19: =VLOOKUP(D19,'AMCA 208 Tables'!$A$17:$G$27,5,FALSE) -> A or C | F19: =VLOOKUP(D19,'AMCA 208 Tables'!$A$17:$G$27,6,FALSE) -> Static | G19: 35.94 | H19: 7.217 | I19: 0.075 | J19: 3500 | K19: 1.5 | L19: - | M19: =IF(D19="Circulating",($J19+'AMCA 208 Tables'!$I$3)*($L19+'AMCA 208 Tables'!$I$4*(IF($I19=0,0.075,$I19)/0.075))/(6343*'AMCA 208 Tables'!$I$5),(IF(F19="Total",($J19+'AMCA 208 Tables'!$F$3)*($L19+'AMCA 208 Tables'!$F$4*(IF($I19=0,0.075,$I19)/0.075))/(6343*'AMCA 208 Tables'!$F$5),($J19+'AMCA 208 Tables'!$F$3)*($K19+'AMCA 208 Tables'!$F$4*(IF($I19=0,0.075,$I19)/0.075))/(6343*'AMCA 208 Tables'!$F$6)))) -> 1.872142519 | N19: 0.9234152231 | O19: ='AMCA 208 Tables'!F$9*(LOG(M19/N19*0.746))^4+'AMCA 208 Tables'!F$10*(LOG(M19/N19*0.746))^3+'AMCA 208 Tables'!F$11*(LOG(M19/N19*0.746))^2+'AMCA 208 Tables'!F$12*LOG(M19/N19*0.746)+'AMCA 208 Tables'!F$13 -> 0.8706696996 | P19: 1.737109813 | Q19: 2 | R19: V-Belt | S19: 0.9250394796 | T19: ='AMCA 208 Tables'!F$9*(LOG(Q19/S19*0.746))^4+'AMCA 208 Tables'!F$10*(LOG(Q19/S19*0.746))^3+'AMCA 208 Tables'!F$11*(LOG(Q19/S19*0.746))^2+'AMCA 208 Tables'!F$12*LOG(Q19/S19*0.746)+'AMCA 208 Tables'!F$13 -> 0.8734702835 | U19: 1.846547231 | V19: 0.9407340274
B20: ABC | C20: 222 | D20: Centrifugal Housed | E20: =VLOOKUP(D20,'AMCA 208 Tables'!$A$17:$G$27,5,FALSE) -> B or D | F20: =VLOOKUP(D20,'AMCA 208 Tables'!$A$17:$G$27,6,FALSE) -> Total | G20: 22.25 | H20: 3.971 | I20: 0.075 | J20: 5500 | K20: 1.2 | L20: 1.31938243 | M20: =IF(D20="Circulating",($J20+'AMCA 208 Tables'!$I$3)*($L20+'AMCA 208 Tables'!$I$4*(IF($I20=0,0.075,$I20)/0.075))/(6343*'AMCA 208 Tables'!$I$5),(IF(F20="Total",($J20+'AMCA 208 Tables'!$F$3)*($L20+'AMCA 208 Tables'!$F$4*(IF($I20=0,0.075,$I20)/0.075))/(6343*'AMCA 208 Tables'!$F$5),($J20+'AMCA 208 Tables'!$F$3)*($K20+'AMCA 208 Tables'!$F$4*(IF($I20=0,0.075,$I20)/0.075))/(6343*'AMCA 208 Tables'!$F$6)))) -> 2.361574672 | N20: 0.9289141484 | O20: ='AMCA 208 Tables'!F$9*(LOG(M20/N20*0.746))^4+'AMCA 208 Tables'!F$10*(LOG(M20/N20*0.746))^3+'AMCA 208 Tables'!F$11*(LOG(M20/N20*0.746))^2+'AMCA 208 Tables'!F$12*LOG(M20/N20*0.746)+'AMCA 208 Tables'!F$13 -> 0.8801344093 | P20: 2.154844481 | Q20: 1.72 | R20: Direct | S20: 1 | T20: ='AMCA 208 Tables'!F$9*(LOG(Q20/S20*0.746))^4+'AMCA 208 Tables'!F$10*(LOG(Q20/S20*0.746))^3+'AMCA 208 Tables'!F$11*(LOG(Q20/S20*0.746))^2+'AMCA 208 Tables'!F$12*LOG(Q20/S20*0.746)+'AMCA 208 Tables'!F$13 -> 0.8630795871 | U20: 1.486676338 | V20: 1.449437531
B21: ABC | C21: 165 | D21: Centrifugal Housed | E21: =VLOOKUP(D21,'AMCA 208 Tables'!$A$17:$G$27,5,FALSE) -> B or D | F21: =VLOOKUP(D21,'AMCA 208 Tables'!$A$17:$G$27,6,FALSE) -> Total | G21: 16.5 | H21: 2.82 | I21: 0.075 | J21: 5500 | K21: 1.2 | L21: 1.436723827 | M21: =IF(D21="Circulating",($J21+'AMCA 208 Tables'!$I$3)*($L21+'AMCA 208 Tables'!$I$4*(IF($I21=0,0.075,$I21)/0.075))/(6343*'AMCA 208 Tables'!$I$5),(IF(F21="Total",($J21+'AMCA 208 Tables'!$F$3)*($L21+'AMCA 208 Tables'!$F$4*(IF($I21=0,0.075,$I21)/0.075))/(6343*'AMCA 208 Tables'!$F$5),($J21+'AMCA 208 Tables'!$F$3)*($K21+'AMCA 208 Tables'!$F$4*(IF($I21=0,0.075,$I21)/0.075))/(6343*'AMCA 208 Tables'!$F$6)))) -> 2.522743278 | N21: 0.9303688667 | O21: ='AMCA 208 Tables'!F$9*(LOG(M21/N21*0.746))^4+'AMCA 208 Tables'!F$10*(LOG(M21/N21*0.746))^3+'AMCA 208 Tables'!F$11*(LOG(M21/N21*0.746))^2+'AMCA 208 Tables'!F$12*LOG(M21/N21*0.746)+'AMCA 208 Tables'!F$13 -> 0.8826377384 | P21: 2.291786853 | Q21: 1.97 | R21: V-Belt | S21: 0.9246720738 | T21: ='AMCA 208 Tables'!F$9*(LOG(Q21/S21*0.746))^4+'AMCA 208 Tables'!F$10*(LOG(Q21/S21*0.746))^3+'AMCA 208 Tables'!F$11*(LOG(Q21/S21*0.746))^2+'AMCA 208 Tables'!F$12*LOG(Q21/S21*0.746)+'AMCA 208 Tables'!F$13 -> 0.8728373985 | U21: 1.820891069 | V21: 1.258607334
B22: ABC | C22: 270 | D22: Centrifugal Housed | E22: =VLOOKUP(D22,'AMCA 208 Tables'!$A$17:$G$27,5,FALSE) -> B or D | F22: =VLOOKUP(D22,'AMCA 208 Tables'!$A$17:$G$27,6,FALSE) -> Total | G22: 27 | H22: 4.19 | I22: 0.075 | J22: 5000 | K22: 2 | L22: 2.088618985 | M22: =IF(D22="Circulating",($J22+'AMCA 208 Tables'!$I$3)*($L22+'AMCA 208 Tables'!$I$4*(IF($I22=0,0.075,$I22)/0.075))/(6343*'AMCA 208 Tables'!$I$5),(IF(F22="Total",($J22+'AMCA 208 Tables'!$F$3)*($L22+'AMCA 208 Tables'!$F$4*(IF($I22=0,0.075,$I22)/0.075))/(6343*'AMCA 208 Tables'!$F$5),($J22+'AMCA 208 Tables'!$F$3)*($K22+'AMCA 208 Tables'!$F$4*(IF($I22=0,0.075,$I22)/0.075))/(6343*'AMCA 208 Tables'!$F$6)))) -> 3.120894346 | N22: 0.9347295116 | O22: ='AMCA 208 Tables'!F$9*(LOG(M22/N22*0.746))^4+'AMCA 208 Tables'!F$10*(LOG(M22/N22*0.746))^3+'AMCA 208 Tables'!F$11*(LOG(M22/N22*0.746))^2+'AMCA 208 Tables'!F$12*LOG(M22/N22*0.746)+'AMCA 208 Tables'!F$13 -> 0.8901877853 | P22: 2.79801674 | Q22: 2.65 | R22: V-Belt | S22: 0.9314218888 | T22: ='AMCA 208 Tables'!F$9*(LOG(Q22/S22*0.746))^4+'AMCA 208 Tables'!F$10*(LOG(Q22/S22*0.746))^3+'AMCA 208 Tables'!F$11*(LOG(Q22/S22*0.746))^2+'AMCA 208 Tables'!F$12*LOG(Q22/S22*0.746)+'AMCA 208 Tables'!F$13 -> 0.8844529344 | U22: 2.399736374 | V22: 1.165968383
B23: ABC | C23: 245 | D23: Centrifugal Housed | E23: =VLOOKUP(D23,'AMCA 208 Tables'!$A$17:$G$27,5,FALSE) -> B or D | F23: =VLOOKUP(D23,'AMCA 208 Tables'!$A$17:$G$27,6,FALSE) -> Total | G23: 27 | H23: 3.233 | I23: 0.075 | J23: 5000 | K23: 2 | L23: 2.148848139 | M23: =IF(D23="Circulating",($J23+'AMCA 208 Tables'!$I$3)*($L23+'AMCA 208 Tables'!$I$4*(IF($I23=0,0.075,$I23)/0.075))/(6343*'AMCA 208 Tables'!$I$5),(IF(F23="Total",($J23+'AMCA 208 Tables'!$F$3)*($L23+'AMCA 208 Tables'!$F$4*(IF($I23=0,0.075,$I23)/0.075))/(6343*'AMCA 208 Tables'!$F$5),($J23+'AMCA 208 Tables'!$F$3)*($K23+'AMCA 208 Tables'!$F$4*(IF($I23=0,0.075,$I23)/0.075))/(6343*'AMCA 208 Tables'!$F$6)))) -> 3.196425726 | N23: 0.9351884915 | O23: ='AMCA 208 Tables'!F$9*(LOG(M23/N23*0.746))^4+'AMCA 208 Tables'!F$10*(LOG(M23/N23*0.746))^3+'AMCA 208 Tables'!F$11*(LOG(M23/N23*0.746))^2+'AMCA 208 Tables'!F$12*LOG(M23/N23*0.746)+'AMCA 208 Tables'!F$13 -> 0.890989401 | P23: 2.861750408 | Q23: 2.37 | R23: Direct | S23: 1 | T23: ='AMCA 208 Tables'!F$9*(LOG(Q23/S23*0.746))^4+'AMCA 208 Tables'!F$10*(LOG(Q23/S23*0.746))^3+'AMCA 208 Tables'!F$11*(LOG(Q23/S23*0.746))^2+'AMCA 208 Tables'!F$12*LOG(Q23/S23*0.746)+'AMCA 208 Tables'!F$13 -> 0.8773144813 | U23: 2.015263669 | V23: 1.420037711
B24: ABC | C24: 122 | D24: Centrifugal Housed | E24: =VLOOKUP(D24,'AMCA 208 Tables'!$A$17:$G$27,5,FALSE) -> B or D | F24: =VLOOKUP(D24,'AMCA 208 Tables'!$A$17:$G$27,6,FALSE) -> Total | G24: 12.25 | H24: 1.55 | I24: 0.075 | J24: 5000 | K24: 2 | L24: 2.647577011 | M24: =IF(D24="Circulating",($J24+'AMCA 208 Tables'!$I$3)*($L24+'AMCA 208 Tables'!$I$4*(IF($I24=0,0.075,$I24)/0.075))/(6343*'AMCA 208 Tables'!$I$5),(IF(F24="Total",($J24+'AMCA 208 Tables'!$F$3)*($L24+'AMCA 208 Tables'!$F$4*(IF($I24=0,0.075,$I24)/0.075))/(6343*'AMCA 208 Tables'!$F$5),($J24+'AMCA 208 Tables'!$F$3)*($K24+'AMCA 208 Tables'!$F$4*(IF($I24=0,0.075,$I24)/0.075))/(6343*'AMCA 208 Tables'!$F$6)))) -> 3.821865026 | N24: 0.9384225808 | O24: ='AMCA 208 Tables'!F$9*(LOG(M24/N24*0.746))^4+'AMCA 208 Tables'!F$10*(LOG(M24/N24*0.746))^3+'AMCA 208 Tables'!F$11*(LOG(M24/N24*0.746))^2+'AMCA 208 Tables'!F$12*LOG(M24/N24*0.746)+'AMCA 208 Tables'!F$13 -> 0.8967007141 | P24: 3.388193522 | Q24: 3.94 | R24: V-Belt | S24: 0.9389395344 | T24: ='AMCA 208 Tables'!F$9*(LOG(Q24/S24*0.746))^4+'AMCA 208 Tables'!F$10*(LOG(Q24/S24*0.746))^3+'AMCA 208 Tables'!F$11*(LOG(Q24/S24*0.746))^2+'AMCA 208 Tables'!F$12*LOG(Q24/S24*0.746)+'AMCA 208 Tables'!F$13 -> 0.8976265694 | U24: =Q24*(1/S24)*(1/T24)*0.746 -> 3.487399691 | V24: =P24/U24 -> 0.9715529685
B25: ABC | C25: 182 | D25: Centrifugal Housed | E25: =VLOOKUP(D25,'AMCA 208 Tables'!$A$17:$G$27,5,FALSE) -> B or D | F25: =VLOOKUP(D25,'AMCA 208 Tables'!$A$17:$G$27,6,FALSE) -> Total | G25: 18.25 | H25: 3.45 | I25: 0.075 | J25: 5000 | K25: 2 | L25: 2.130712352 | M25: =IF(D25="Circulating",($J25+'AMCA 208 Tables'!$I$3)*($L25+'AMCA 208 Tables'!$I$4*(IF($I25=0,0.075,$I25)/0.075))/(6343*'AMCA 208 Tables'!$I$5),(IF(F25="Total",($J25+'AMCA 208 Tables'!$F$3)*($L25+'AMCA 208 Tables'!$F$4*(IF($I25=0,0.075,$I25)/0.075))/(6343*'AMCA 208 Tables'!$F$5),($J25+'AMCA 208 Tables'!$F$3)*($K25+'AMCA 208 Tables'!$F$4*(IF($I25=0,0.075,$I25)/0.075))/(6343*'AMCA 208 Tables'!$F$6)))) -> 3.173682238 | N25: 0.9350520916 | O25: ='AMCA 208 Tables'!F$9*(LOG(M25/N25*0.746))^4+'AMCA 208 Tables'!F$10*(LOG(M25/N25*0.746))^3+'AMCA 208 Tables'!F$11*(LOG(M25/N25*0.746))^2+'AMCA 208 Tables'!F$12*LOG(M25/N25*0.746)+'AMCA 208 Tables'!F$13 -> 0.8907509887 | P25: 2.842563333 | Q25: 2.21 | R25: V-Belt | S25: 0.9274038986 | T25: ='AMCA 208 Tables'!F$9*(LOG(Q25/S25*0.746))^4+'AMCA 208 Tables'!F$10*(LOG(Q25/S25*0.746))^3+'AMCA 208 Tables'!F$11*(LOG(Q25/S25*0.746))^2+'AMCA 208 Tables'!F$12*LOG(Q25/S25*0.746)+'AMCA 208 Tables'!F$13 -> 0.8775378393 | U25: 2.025798903 | V25: 1.403181396
B26: ABC | C26: 300 | D26: Centrifugal Housed | E26: =VLOOKUP(D26,'AMCA 208 Tables'!$A$17:$G$27,5,FALSE) -> B or D | F26: =VLOOKUP(D26,'AMCA 208 Tables'!$A$17:$G$27,6,FALSE) -> Total | G26: 30 | H26: 5.17 | I26: 0.075 | J26: 6000 | K26: 2 | L26: 2.083817794 | M26: =IF(D26="Circulating",($J26+'AMCA 208 Tables'!$I$3)*($L26+'AMCA 208 Tables'!$I$4*(IF($I26=0,0.075,$I26)/0.075))/(6343*'AMCA 208 Tables'!$I$5),(IF(F26="Total",($J26+'AMCA 208 Tables'!$F$3)*($L26+'AMCA 208 Tables'!$F$4*(IF($I26=0,0.075,$I26)/0.075))/(6343*'AMCA 208 Tables'!$F$5),($J26+'AMCA 208 Tables'!$F$3)*($K26+'AMCA 208 Tables'!$F$4*(IF($I26=0,0.075,$I26)/0.075))/(6343*'AMCA 208 Tables'!$F$6)))) -> 3.708182537 | N26: 0.9379001235 | O26: ='AMCA 208 Tables'!F$9*(LOG(M26/N26*0.746))^4+'AMCA 208 Tables'!F$10*(LOG(M26/N26*0.746))^3+'AMCA 208 Tables'!F$11*(LOG(M26/N26*0.746))^2+'AMCA 208 Tables'!F$12*LOG(M26/N26*0.746)+'AMCA 208 Tables'!F$13 -> 0.8957691585 | P26: 3.29266262 | Q26: 2.47 | R26: V-Belt | S26: =IF($R26="Direct",1,IF($R26="Coupling",0.98,IF($R26="V-Belt",0.96*(Q26/(Q26+2.2))^0.05,IF($R26="Synch Belt",IF(Q26<=1.34,0.94,IF(Q26<=6.7,(0.00746*Q26+0.93),0.98)),"Missing Transmission Type")))) -> 0.9299085411 | T26: ='AMCA 208 Tables'!F$9*(LOG(Q26/S26*0.746))^4+'AMCA 208 Tables'!F$10*(LOG(Q26/S26*0.746))^3+'AMCA 208 Tables'!F$11*(LOG(Q26/S26*0.746))^2+'AMCA 208 Tables'!F$12*LOG(Q26/S26*0.746)+'AMCA 208 Tables'!F$13 -> 0.8818451736 | U26: =Q26*(1/S26)*(1/T26)*0.746 -> 2.247000669 | V26: =P26/U26 -> 1.465358985
B27: ABC | C27: 270 | D27: Centrifugal Housed | E27: =VLOOKUP(D27,'AMCA 208 Tables'!$A$17:$G$27,5,FALSE) -> B or D | F27: =VLOOKUP(D27,'AMCA 208 Tables'!$A$17:$G$27,6,FALSE) -> Total | G27: 27 | H27: 4.19 | I27: 0.075 | J27: 6500 | K27: 2.5 | L27: 2.649766085 | M27: =IF(D27="Circulating",($J27+'AMCA 208 Tables'!$I$3)*($L27+'AMCA 208 Tables'!$I$4*(IF($I27=0,0.075,$I27)/0.075))/(6343*'AMCA 208 Tables'!$I$5),(IF(F27="Total",($J27+'AMCA 208 Tables'!$F$3)*($L27+'AMCA 208 Tables'!$F$4*(IF($I27=0,0.075,$I27)/0.075))/(6343*'AMCA 208 Tables'!$F$5),($J27+'AMCA 208 Tables'!$F$3)*($K27+'AMCA 208 Tables'!$F$4*(IF($I27=0,0.075,$I27)/0.075))/(6343*'AMCA 208 Tables'!$F$6)))) -> 4.917356063 | N27: 0.94241433 | O27: ='AMCA 208 Tables'!F$9*(LOG(M27/N27*0.746))^4+'AMCA 208 Tables'!F$10*(LOG(M27/N27*0.746))^3+'AMCA 208 Tables'!F$11*(LOG(M27/N27*0.746))^2+'AMCA 208 Tables'!F$12*LOG(M27/N27*0.746)+'AMCA 208 Tables'!F$13 -> 0.9039848308 | P27: 4.305934902 | Q27: 3.19 | R27: V-Belt | S27: 0.9351501093 | T27: ='AMCA 208 Tables'!F$9*(LOG(Q27/S27*0.746))^4+'AMCA 208 Tables'!F$10*(LOG(Q27/S27*0.746))^3+'AMCA 208 Tables'!F$11*(LOG(Q27/S27*0.746))^2+'AMCA 208 Tables'!F$12*LOG(Q27/S27*0.746)+'AMCA 208 Tables'!F$13 -> 0.8909222965 | U27: 2.856329819 | V27: 1.507506197
B28: ABC | C28: 165 | D28: Centrifugal Housed | E28: =VLOOKUP(D28,'AMCA 208 Tables'!$A$17:$G$27,5,FALSE) -> B or D | F28: =VLOOKUP(D28,'AMCA 208 Tables'!$A$17:$G$27,6,FALSE) -> Total | G28: 20 | H28: 2.3 | I28: 0.075 | J28: 6500 | K28: 2.5 | L28: 2.997033718 | M28: =IF(D28="Circulating",($J28+'AMCA 208 Tables'!$I$3)*($L28+'AMCA 208 Tables'!$I$4*(IF($I28=0,0.075,$I28)/0.075))/(6343*'AMCA 208 Tables'!$I$5),(IF(F28="Total",($J28+'AMCA 208 Tables'!$F$3)*($L28+'AMCA 208 Tables'!$F$4*(IF($I28=0,0.075,$I28)/0.075))/(6343*'AMCA 208 Tables'!$F$5),($J28+'AMCA 208 Tables'!$F$3)*($K28+'AMCA 208 Tables'!$F$4*(IF($I28=0,0.075,$I28)/0.075))/(6343*'AMCA 208 Tables'!$F$6)))) -> 5.477280514 | N28: 0.9439285279 | O28: ='AMCA 208 Tables'!F$9*(LOG(M28/N28*0.746))^4+'AMCA 208 Tables'!F$10*(LOG(M28/N28*0.746))^3+'AMCA 208 Tables'!F$11*(LOG(M28/N28*0.746))^2+'AMCA 208 Tables'!F$12*LOG(M28/N28*0.746)+'AMCA 208 Tables'!F$13 -> 0.9068528545 | P28: 4.773400506 | Q28: 6.52 | R28: V-Belt | S28: 0.9461451959 | T28: ='AMCA 208 Tables'!F$9*(LOG(Q28/S28*0.746))^4+'AMCA 208 Tables'!F$10*(LOG(Q28/S28*0.746))^3+'AMCA 208 Tables'!F$11*(LOG(Q28/S28*0.746))^2+'AMCA 208 Tables'!F$12*LOG(Q28/S28*0.746)+'AMCA 208 Tables'!F$13 -> 0.9112044602 | U28: 5.641736492 | V28: 0.8460871068

Sheet AMCA 208 Tables
E2: FEPref Constants, section 5.2 | H2: FEPref Constants, for ceiling fans
E3: Q0 | F3: 250 | H3: Q0 | I3: 16000
E4: P0 | F4: 0.4 | H4: P0 | I4: 0.0025
E5: η0,Total | F5: 0.66 | H5: η0,Total | I5: 0.4
E6: η0,Static | F6: 0.6 | H6: η0,Static
E8: Ref Mtr Constants, section 5.2
E9: A | F9: -0.0038
E10: B | F10: 0.0258
E11: C | F11: -0.0726
E12: D | F12: 0.1256
E13: E | F13: 0.8503
A15: AMCA 208 Annex A, Table A.2 (draft, for lookup)
A16: Fan Category | B16: Housing Type | C16: Impeller Type | D16: Test Standard | E16: Test Config/ Installation Type | F16: FEI Pressure Basis | G16: Notes
A17: Centrifugal Housed | B17: SW or DW Scroll (not inline) | C17: AF, BC, BI, MF, FC, Radial, Radial Tipped | D17: AMCA 210, ISO 5801 | E17: B or D | F17: Total | G17: 1
A18: Centrifugal Inline | B18: Square, Rect, Cylindrical | C18: AF, BC, BI, MF, FC | D18: AMCA 210, ISO 5801 | E18: B or D | F18: Total | G18: 1
A19: Centrifugal Unhoused | B19: None | C19: AF, BC, BI, MF | D19: AMCA 210, ISO 5801 | E19: A | F19: Static | G19: 2
A20: Centrifugal PRV Exhaust | B20: Spun Alum, Upblast, Hooded, Wall Housing | C20: AF, BC, BI, MF, FC | D20: AMCA 210, ISO 5801 | E20: A or C | F20: Static | G20: 3
A21: Centrifugal PRV Supply | B21: Hooded or otherwise enclosed | C21: AF, BC, BI, MF, FC | D21: AMCA 210, ISO 5801 | E21: B or D | F21: Total | G21: 3
A22: Axial Inline | B22: Cylindrical | C22: Propeller | D22: AMCA 210, ISO 5801 | E22: B or D | F22: Total | G22: 1
A23: Axial Panel | B23: Panel, Ring | C23: Propeller | D23: AMCA 210, ISO 5801 | E23: A | F23: Static
A24: Axial PRV | B24: Sup & Ex, Spun Alum, Upblast, Hooded, Wall Housing | C24: Propeller | D24: AMCA 210, ISO 5801 | E24: A or C | F24: Static
A25: Laboratory Exhaust | B25: High Velocity Discharge, Induced Flow | C25: Any | D25: AMCA 210, AMCA 260, ISO 5801 | E25: A or C | F25: Total | G25: 4,5
A26: Jet Fan | B26: Unidirectional, Reversible | C26: Propeller or AF, BC, BI | D26: AMCA 250, | E26: E | F26: Total | G26: 4,6
A27: Circulating | B27: Cylindrical, Panel, Unhoused | C27: Propeller | D27: AMCA 230 | E27: E | F27: Total | G27: 4,7
A30: AMCA 208 Annex A, Table A.2 (draft, complete)

Sheet AMCA 207 Tables
A1: Table A1. EISA 2007 Nominal Motor Effciency
A2: Motor Power (hp) | B2: ODP
B3: 2 | C3: 4 | D3: 6 | E3: 8
A4: 1 | B4: 0.77 | C4: 0.855 | D4: 0.825 | E4: 0.755
A5: 1.5 | B5: 0.84 | C5: 0.865 | D5: 0.865 | E5: 0.785
A6: 2 | B6: 0.855 | C6: 0.865 | D6: 0.875 | E6: 0.84
A7: 3 | B7: 0.855 | C7: 0.895 | D7: 0.885 | E7: 0.855
A8: 5 | B8: 0.865 | C8: 0.895 | D8: 0.895 | E8: 0.865
A9: 7.5 | B9: 0.885 | C9: 0.91 | D9: 0.902 | E9: 0.865
A10: 10 | B10: 0.895 | C10: 0.917 | D10: 0.917 | E10: 0.895
A11: 15 | B11: 0.902 | C11: 0.93 | D11: 0.917 | E11: 0.895
A12: 20 | B12: 0.91 | C12: 0.93 | D12: 0.924 | E12: 0.902
A13: 25 | B13: 0.917 | C13: 0.936 | D13: 0.93 | E13: 0.902
A14: 30 | B14: 0.917 | C14: 0.941 | D14: 0.936 | E14: 0.917
A15: 40 | B15: 0.924 | C15: 0.941 | D15: 0.941 | E15: 0.917
A16: 50 | B16: 0.93 | C16: 0.945 | D16: 0.941 | E16: 0.924
A17: 60 | B17: 0.936 | C17: 0.95 | D17: 0.945 | E17: 0.924
A18: 75 | B18: 0.936 | C18: 0.95 | D18: 0.945 | E18: 0.936
A19: 100 | B19: 0.936 | C19: 0.954 | D19: 0.95 | E19: 0.941
A20: 125 | B20: 0.941 | C20: 0.954 | D20: 0.95 | E20: 0.941
A21: 150 | B21: 0.941 | C21: 0.958 | D21: 0.954 | E21: 0.945
A22: 200 | B22: 0.95 | C22: 0.958 | D22: 0.954 | E22: 0.945
A23: 250 | B23: 0.95 | C23: 0.958 | D23: 0.958 | E23: 0.95
A24: 300 | B24: 0.954 | C24: 0.958 | D24: 0.958
A25: 350 | B25: 0.954 | C25: 0.958 | D25: 0.955
A26: 400 | B26: 0.958 | C26: 0.958
A27: 450 | B27: 0.962 | C27: 0.962
A28: 500 | B28: 0.962 | C28: 0.962
A30: Table A1. EISA 2007 Nominal Motor Effciency
A31: Motor Power (hp) | B31: TEFC
B32: 2 | C32: 4 | D32: 6 | E32: 8
A33: 1 | B33: 0.77 | C33: 0.855 | D33: 0.825 | E33: 0.72
A34: 1.5 | B34: 0.84 | C34: 0.865 | D34: 0.875 | E34: 0.755
A35: 2 | B35: 0.855 | C35: 0.865 | D35: 0.885 | E35: 0.815
A36: 3 | B36: 0.865 | C36: 0.895 | D36: 0.895 | E36: 0.825
A37: 5 | B37: 0.885 | C37: 0.895 | D37: 0.895 | E37: 0.84
A38: 7.5 | B38: 0.895 | C38: 0.917 | D38: 0.91 | E38: 0.84
A39: 10 | B39: 0.902 | C39: 0.917 | D39: 0.91 | E39: 0.875
A40: 15 | B40: 0.91 | C40: 0.924 | D40: 0.917 | E40: 0.875
A41: 20 | B41: 0.91 | C41: 0.93 | D41: 0.917 | E41: 0.885
A42: 25 | B42: 0.917 | C42: 0.936 | D42: 0.93 | E42: 0.885
A43: 30 | B43: 0.917 | C43: 0.936 | D43: 0.93 | E43: 0.902
A44: 40 | B44: 0.924 | C44: 0.941 | D44: 0.941 | E44: 0.902
A45: 50 | B45: 0.93 | C45: 0.945 | D45: 0.941 | E45: 0.91
A46: 60 | B46: 0.936 | C46: 0.95 | D46: 0.945 | E46: 0.91
A47: 75 | B47: 0.936 | C47: 0.954 | D47: 0.945 | E47: 0.924
A48: 100 | B48: 0.941 | C48: 0.954 | D48: 0.95 | E48: 0.924
A49: 125 | B49: 0.95 | C49: 0.954 | D49: 0.95 | E49: 0.93
A50: 150 | B50: 0.95 | C50: 0.958 | D50: 0.958 | E50: 0.93
A51: 200 | B51: 0.954 | C51: 0.962 | D51: 0.958 | E51: 0.936
A52: 250 | B52: 0.958 | C52: 0.962 | D52: 0.958 | E52: 0.941
A53: 300 | B53: 0.958 | C53: 0.962
A54: 350 | B54: 0.958 | C54: 0.962
A55: 400 | B55: 0.958 | C55: 0.962
A56: 450 | B56: 0.958 | C56: 0.962
A57: 500 | B57: 0.958 | C57: 0.962
A59: Table A2. IEC60034-30 Nominal Motor Efficiency
A60: Motor Power (kW) | B60: IE1 | E60: IE2 | H60: IE3
B61: 2 Pole | C61: 4 Pole | D61: 6 Pole | E61: 2 Pole | F61: 4 Pole | G61: 6 Pole | H61: 2 Pole | I61: 4 Pole | J61: 6 Pole
B62: 50 Hz | C62: 50 Hz | D62: 50 Hz | E62: 50 Hz | F62: 50 Hz | G62: 50 Hz | H62: 50 Hz | I62: 50 Hz | J62: 50 Hz
A63: 1 | B63: 72.1 | C63: 72.1 | D63: 70 | E63: 77.4 | F63: 79.6 | G63: 75.9 | H63: 80.7 | I63: 82.5 | J63: 78.9
A64: 1.1 | B64: 75 | C64: 75 | D64: 72.9 | E64: 79.6 | F64: 81.4 | G64: 78.1 | H64: 82.7 | I64: 84.1 | J64: 81
A65: 1.5 | B65: 77.2 | C65: 77.2 | D65: 75.2 | E65: 81.3 | F65: 82.8 | G65: 79.8 | H65: 84.2 | I65: 85.3 | J65: 82.5
A66: 2.2 | B66: 79.7 | C66: 79.7 | D66: 77.7 | E66: 83.2 | F66: 84.3 | G66: 81.8 | H66: 85.9 | I66: 86.7 | J66: 84.3
A67: 3 | B67: 81.5 | C67: 81.5 | D67: 79.7 | E67: 84.6 | F67: 85.5 | G67: 83.3 | H67: 87.1 | I67: 87.7 | J67: 85.6
A68: 4 | B68: 83.1 | C68: 83.1 | D68: 81.4 | E68: 85.8 | F68: 86.6 | G68: 84.6 | H68: 88.1 | I68: 88.6 | J68: 86.8
A69: 5.5 | B69: 84.7 | C69: 84.7 | D69: 83.1 | E69: 87 | F69: 87.7 | G69: 86 | H69: 89.2 | I69: 89.6 | J69: 88
A70: 7.5 | B70: 86 | C70: 86 | D70: 84.7 | E70: 88.1 | F70: 88.7 | G70: 87.2 | H70: 90.1 | I70: 90.4 | J70: 89.1
A71: 11 | B71: 87.6 | C71: 87.6 | D71: 86.4 | E71: 89.4 | F71: 89.8 | G71: 88.7 | H71: 91.2 | I71: 91.4 | J71: 90.3
A72: 15 | B72: 88.7 | C72: 88.7 | D72: 87.7 | E72: 90.3 | F72: 90.6 | G72: 89.7 | H72: 91.9 | I72: 92.1 | J72: 91.2
A73: 18.5 | B73: 89.3 | C73: 89.3 | D73: 88.6 | E73: 90.9 | F73: 91.2 | G73: 90.4 | H73: 92.4 | I73: 92.6 | J73: 91.7
A74: 22 | B74: 89.9 | C74: 89.9 | D74: 89.2 | E74: 91.3 | F74: 91.6 | G74: 90.9 | H74: 92.7 | I74: 93 | J74: 92.2
A75: 30 | B75: 90.7 | C75: 90.7 | D75: 90.2 | E75: 92 | F75: 92.3 | G75: 91.7 | H75: 93.3 | I75: 93.6 | J75: 92.9
A76: 37 | B76: 91.2 | C76: 91.2 | D76: 90.8 | E76: 92.5 | F76: 92.7 | G76: 92.2 | H76: 93.7 | I76: 93.9 | J76: 93.3
A77: 45 | B77: 91.7 | C77: 91.7 | D77: 91.4 | E77: 92.9 | F77: 93.1 | G77: 92.7 | H77: 94 | I77: 94.2 | J77: 93.7
A78: 55 | B78: 92.1 | C78: 92.1 | D78: 91.9 | E78: 93.2 | F78: 93.5 | G78: 93.1 | H78: 94.3 | I78: 94.6 | J78: 94.1
A79: 75 | B79: 92.7 | C79: 92.7 | D79: 92.6 | E79: 93.8 | F79: 94 | G79: 93.7 | H79: 94.7 | I79: 95 | J79: 94.6
A80: 90 | B80: 93 | C80: 93 | D80: 92.9 | E80: 94.1 | F80: 94.2 | G80: 94 | H80: 95 | I80: 95.2 | J80: 94.9
A81: 110 | B81: 93.3 | C81: 93.3 | D81: 93.3 | E81: 94.3 | F81: 94.5 | G81: 94.3 | H81: 95.2 | I81: 95.4 | J81: 95.1
A82: 132 | B82: 93.5 | C82: 93.5 | D82: 93.5 | E82: 94.6 | F82: 94.7 | G82: 94.6 | H82: 95.4 | I82: 95.6 | J82: 95.4
A83: 160 | B83: 93.8 | C83: 93.8 | D83: 93.8 | E83: 94.8 | F83: 94.9 | G83: 94.8 | H83: 95.6 | I83: 95.8 | J83: 95.6
A84: 200 | B84: 94 | C84: 94 | D84: 94 | E84: 95 | F84: 95.1 | G84: 95 | H84: 95.8 | I84: 96 | J84: 95.8
A85: 220 | B85: 94 | C85: 94 | D85: 94 | E85: 95 | F85: 95.1 | G85: 95 | H85: 95.8 | I85: 96 | J85: 95.8
A86: 250 | B86: 94 | C86: 94 | D86: 94 | E86: 95 | F86: 95.1 | G86: 95 | H86: 95.8 | I86: 96 | J86: 95.8
A87: 300 | B87: 94 | C87: 94 | D87: 94 | E87: 95 | F87: 95.1 | G87: 95 | H87: 95.8 | I87: 96 | J87: 95.8
A88: 330 | B88: 94 | C88: 94 | D88: 94 | E88: 95 | F88: 95.1 | G88: 95 | H88: 95.8 | I88: 96 | J88: 95.8
A89: 375 | B89: 94 | C89: 94 | D89: 94 | E89: 95 | F89: 95.1 | G89: 95 | H89: 95.8 | I89: 96 | J89: 95.8
A91: Table A3. GB 18613-2012 Nominal Motor Efficiency
A92: Motor Power (kW) | B92: Grade 1 | E92: Grade 2 | H92: Grade 3
B93: 2 Pole | C93: 4 Pole | D93: 6 Pole | E93: 2 Pole | F93: 4 Pole | G93: 6 Pole | H93: 2 Pole | I93: 4 Pole | J93: 6 Pole
A94: 1 | B94: 84.9 | C94: 85.6 | D94: 83.1 | E94: 80.7 | F94: 82.5 | G94: 78.9 | H94: 77.4 | I94: 79.6 | J94: 75.9
A95: 1.1 | B95: 86.7 | C95: 87.4 | D95: 84.1 | E95: 82.7 | F95: 84.1 | G95: 81 | H95: 79.6 | I95: 81.4 | J95: 78.1
A96: 1.5 | B96: 87.5 | C96: 88.1 | D96: 86.2 | E96: 84.2 | F96: 85.3 | G96: 82.5 | H96: 81.3 | I96: 82.8 | J96: 79.8
A97: 2.2 | B97: 89.1 | C97: 89.7 | D97: 87.1 | E97: 85.9 | F97: 86.7 | G97: 84.3 | H97: 83.2 | I97: 84.3 | J97: 81.8
A98: 3 | B98: 89.7 | C98: 90.3 | D98: 88.7 | E98: 87.1 | F98: 87.7 | G98: 85.6 | H98: 84.6 | I98: 85.5 | J98: 83.3
A99: 4 | B99: 90.3 | C99: 90.9 | D99: 89.7 | E99: 88.1 | F99: 88.6 | G99: 86.8 | H99: 85.8 | I99: 86.6 | J99: 84.6
A100: 5.5 | B100: 91.5 | C100: 92.1 | D100: 89.5 | E100: 89.2 | F100: 89.6 | G100: 88 | H100: 87 | I100: 87.7 | J100: 86
A101: 7.5 | B101: 92.1 | C101: 92.6 | D101: 90.2 | E101: 90.1 | F101: 90.4 | G101: 89.1 | H101: 88.1 | I101: 88.7 | J101: 87.2
A102: 11 | B102: 93 | C102: 93.6 | D102: 91.5 | E102: 91.2 | F102: 91.4 | G102: 90.3 | H102: 89.4 | I102: 89.8 | J102: 88.7
A103: 15 | B103: 93.4 | C103: 94 | D103: 92.5 | E103: 91.9 | F103: 92.1 | G103: 91.2 | H103: 90.3 | I103: 90.6 | J103: 89.7
A104: 18.5 | B104: 93.8 | C104: 94.3 | D104: 93.1 | E104: 92.4 | F104: 92.6 | G104: 91.7 | H104: 90.9 | I104: 91.2 | J104: 90.4
A105: 22 | B105: 94.4 | C105: 94.7 | D105: 93.9 | E105: 92.7 | F105: 93 | G105: 92.2 | H105: 91.3 | I105: 91.6 | J105: 90.9
A106: 30 | B106: 94.5 | C106: 95 | D106: 94.3 | E106: 93.3 | F106: 93.6 | G106: 92.9 | H106: 92 | I106: 92.3 | J106: 91.7
A107: 37 | B107: 94.8 | C107: 95.3 | D107: 94.6 | E107: 93.7 | F107: 93.9 | G107: 93.3 | H107: 92.5 | I107: 92.7 | J107: 92.2
A108: 45 | B108: 95.1 | C108: 95.6 | D108: 94.9 | E108: 94 | F108: 94.2 | G108: 93.7 | H108: 92.9 | I108: 93.1 | J108: 92.7
A109: 55 | B109: 95.4 | C109: 95.8 | D109: 95.2 | E109: 94.3 | F109: 94.6 | G109: 94.1 | H109: 93.2 | I109: 93.5 | J109: 93.1
A110: 75 | B110: 95.6 | C110: 96 | D110: 95.4 | E110: 94.7 | F110: 95 | G110: 94.6 | H110: 93.8 | I110: 94 | J110: 93.7
A111: 90 | B111: 95.8 | C111: 96.2 | D111: 95.6 | E111: 95 | F111: 95.2 | G111: 94.9 | H111: 94.1 | I111: 94.2 | J111: 94
A112: 110 | B112: 96 | C112: 96.4 | D112: 95.6 | E112: 95.2 | F112: 95.4 | G112: 95.1 | H112: 94.6 | I112: 94.5 | J112: 94.3
A113: 132 | B113: 95 | C113: 96.5 | D113: 95.8 | E113: 95.4 | F113: 95.6 | G113: 95.4 | H113: 94.6 | I113: 94.7 | J113: 94.6
A114: 160 | B114: 96.2 | C114: 96.5 | D114: 96 | E114: 95.6 | F114: 95.8 | G114: 95.6 | H114: 94.8 | I114: 94.9 | J114: 94.8
A115: 200 | B115: 96.3 | C115: 96.6 | D115: 96.1 | E115: 95.8 | F115: 96 | G115: 95.8 | H115: 95 | I115: 95.1 | J115: 95
A116: 250 | B116: 96.4 | C116: 96.7 | D116: 96.1 | E116: 95.8 | F116: 96 | G116: 95.8 | H116: 95 | I116: 95.1 | J116: 95
A117: 315 | B117: 96.5 | C117: 96.8 | D117: 96.1 | E117: 95.8 | F117: 96 | G117: 95.8 | H117: 95 | I117: 95.1 | J117: 95
A118: 355 | B118: 96.6 | C118: 96.8 | D118: 96.1 | E118: 95.8 | F118: 96 | G118: 95.8 | H118: 95 | I118: 95.1 | J118: 95
A119: 375 | B119: 96.6 | C119: 96.8 | D119: 96.1 | E119: 95.8 | F119: 96 | G119: 95.8 | H119: 95 | I119: 95.1 | J119: 95
A121: Table B1. Polyphase Induction Motor Coefficients, VFD Driven (hp)
A122: HP | B122: 2 POLE | E122: 4 POLE | H122: 6 POLE | K122: 8 POLE
B123: a | C123: b | D123: c | E123: a | F123: b | G123: c | H123: a | I123: b | J123: c | K123: a | L123: b | M123: c
A124: 1 | B124: 1.029058709 | C124: 0.01701058158 | D124: =1-(B124/(C124+1)) -> -0.01184660968 | E124: 1.03744 | F124: 0.03337 | G124: =1-(E124/(F124+1)) -> -0.003938569922 | H124: 1.0905913 | I124: 0.06456925259 | J124: =1-(H124/(I124+1)) -> -0.02444373351 | K124: 1.0905913 | L124: 0.06456925259 | M124: =1-(K124/(L124+1)) -> -0.02444373351
A125: 1.5 | B125: 1.029977133 | C125: 0.01610317847 | D125: =1-(B125/(C125+1)) -> -0.01365408061 | E125: 1.03812 | F125: 0.03119670754 | G125: =1-(E125/(F125+1)) -> -0.006713842677 | H125: 1.084843844 | I125: 0.05902774502 | J125: =1-(H125/(I125+1)) -> -0.02437716959 | K125: 1.084843844 | L125: 0.05902774502 | M125: =1-(K125/(L125+1)) -> -0.02437716959
A126: 2 | B126: 1.030895557 | C126: 0.01519577537 | D126: -0.01546478264 | E126: 1.0388 | F126: 0.02902048985 | G126: -0.009503707892 | H126: 1.079096388 | I126: 0.05348623744 | J126: -0.02430990538 | K126: 1.079096388 | L126: 0.05348623744 | M126: -0.02430990538
A127: 3 | B127: 1.032732406 | C127: 0.01338096915 | D127: -0.01909591475 | E127: 1.04016 | F127: 0.02466805448 | G127: -0.01511898947 | H127: 1.067601477 | I127: 0.04240322229 | J127: -0.02417323148 | K127: 1.067601477 | L127: 0.04240322229 | M127: -0.02417323148
A128: 5 | B128: 1.036406103 | C128: 0.009751356732 | D128: -0.02639733595 | E128: 1.04288 | F128: 0.01596318373 | G128: -0.02649388945 | H128: 1.044611654 | I128: 0.02023719198 | J128: -0.02389097541 | K128: 1.044611654 | L128: 0.02023719198 | M128: -0.02389097541
A129: 7.5 | B129: 1.034892242 | C129: 0.008916167604 | D129: -0.02574651386 | E129: 1.04077 | F129: 0.01446346728 | G129: -0.0259314737 | H129: 1.04242939 | I129: 0.01798081369 | J129: -0.02401673575 | K129: 1.04242939 | L129: 0.01798081369 | M129: -0.02401673575
A130: 10 | B130: 1.033378381 | C130: 0.008080978477 | D130: -0.02509461336 | E130: 1.03866 | F130: 0.01296375083 | G130: -0.02536739261 | H130: 1.040247126 | I130: 0.0157244354 | J130: -0.02414305482 | K130: 1.040247126 | L130: 0.0157244354 | M130: -0.02414305482
A131: 15 | B131: 1.030350659 | C131: 0.006410600222 | D131: -0.02378756641 | E131: 1.03443 | F131: 0.00996431794 | G131: -0.0242243034 | H131: 1.035882599 | I131: 0.01121167881 | J131: -0.02439738415 | K131: 1.035882599 | L131: 0.01121167881 | M131: -0.02439738415
A132: 20 | B132: 1.027322938 | C132: 0.004740221967 | D132: -0.02247617354 | E132: 1.03021 | F132: 0.006964885047 | G132: -0.02308433521 | H132: 1.031518071 | I132: 0.006698922229 | J132: -0.02465399365 | K132: 1.031518071 | L132: 0.006698922229 | M132: -0.02465399365
A133: 25 | B133: 1.0265368 | C133: 0.004758012192 | D133: -0.0216756546 | E133: 1.02882 | F133: 0.006421183383 | G133: -0.02225590735 | H133: 1.029774386 | I133: 0.006223126419 | J133: -0.02340560335 | K133: 1.029774386 | L133: 0.006223126419 | M133: -0.02340560335
A134: 30 | B134: 1.025750662 | C134: 0.004775802417 | D134: -0.020875164 | E134: 1.02742 | F134: 0.005877481719 | G134: -0.02141664236 | H134: 1.028030701 | I134: 0.005747330609 | J134: -0.02215603188 | K134: 1.028030701 | L134: 0.005747330609 | M134: -0.02215603188
A135: 40 | B135: 1.024178387 | C135: 0.004811382867 | D135: -0.01927426785 | E135: 1.02464 | F135: 0.004790078391 | G135: -0.01975529221 | H135: 1.02454333 | I135: 0.00479573899 | J135: -0.01965333871 | K135: 1.02454333 | L135: 0.00479573899 | M135: -0.01965333871
A136: 50 | B136: 1.022606111 | C136: 0.004846963317 | D136: -0.01767348506 | E136: 1.02185 | F136: 0.003702675063 | G136: -0.01808037917 | H136: 1.021055959 | I136: 0.003844147371 | J136: -0.01714590071 | K136: 1.021055959 | L136: 0.003844147371 | M136: -0.01714590071
A137: 60 | B137: 1.022259272 | C137: 0.004488778563 | D137: -0.01769108246 | E137: 1.021 | F137: 0.003499895607 | G137: -0.01743906947 | H137: 1.020572713 | I137: 0.003986054991 | J137: -0.01652080566 | K137: 1.020572713 | L137: 0.003986054991 | M137: -0.01652080566
A138: 75 | B138: 1.021739014 | C138: 0.003951501432 | D138: -0.01771750211 | E138: 1.01972 | F138: 0.003195726423 | G138: -0.01647163474 | H138: 1.019847845 | I138: 0.004198916421 | J138: -0.01558349434 | K138: 1.019847845 | L138: 0.004198916421 | M138: -0.01558349434
A139: 100 | B139: 1.020871917 | C139: 0.003056039548 | D139: -0.01776159775 | E139: 1.01758 | F139: 0.002688777784 | G139: -0.0148512904 | H139: 1.01863973 | I139: 0.004553685471 | J139: -0.01402219153 | K139: 1.01863973 | L139: 0.004553685471 | M139: -0.01402219153
A140: 125 | B140: 1.019970936 | C140: 0.002992966176 | D140: -0.01692730697 | E140: 1.01725 | F140: 0.002857560252 | G140: -0.01435142967 | H140: 1.019555448 | I140: 0.004585554345 | J140: -0.01490156212 | K140: 1.019555448 | L140: 0.004585554345 | M140: -0.01490156212
A141: 150 | B141: 1.019069955 | C141: 0.002929892804 | D141: -0.01609291125 | E141: 1.01692 | F141: 0.003026342719 | G141: -0.01385173718 | H141: 1.020471167 | I141: 0.004617423219 | J141: -0.01578087692 | K141: 1.020471167 | L141: 0.004617423219 | M141: -0.01578087692
A142: 200 | B142: 1.017267992 | C142: 0.00280374606 | D142: -0.01442380492 | E142: 1.01626 | F142: 0.00336 | G142: -0.01285680115 | H142: 1.022302605 | I142: 0.004681160967 | J142: -0.01753933917 | K142: 1.022302605 | L142: 0.004681160967 | M142: -0.01753933917
A143: 250 | B143: 1.017267992 | C143: 0.00280374606 | D143: -0.01442380492 | E143: 1.01626 | F143: 0.00336 | G143: -0.01285680115 | H143: 1.022302605 | I143: 0.004681160967 | J143: -0.01753933917 | K143: 1.022302605 | L143: 0.004681160967 | M143: -0.01753933917
A144: 300 | B144: 1.017267992 | C144: 0.00280374606 | D144: -0.01442380492 | E144: 1.01626 | F144: 0.00336 | G144: -0.01285680115 | H144: 1.022302605 | I144: 0.004681160967 | J144: -0.01753933917 | K144: 1.022302605 | L144: 0.004681160967 | M144: -0.01753933917
A145: 350 | B145: 1.017267992 | C145: 0.00280374606 | D145: -0.01442380492 | E145: 1.01626 | F145: 0.00336 | G145: -0.01285680115 | H145: 1.022302605 | I145: 0.004681160967 | J145: -0.01753933917 | K145: 1.022302605 | L145: 0.004681160967 | M145: -0.01753933917
A146: 400 | B146: 1.017267992 | C146: 0.00280374606 | D146: -0.01442380492 | E146: 1.01626 | F146: 0.00336 | G146: -0.01285680115 | H146: 1.022302605 | I146: 0.004681160967 | J146: -0.01753933917 | K146: 1.022302605 | L146: 0.004681160967 | M146: -0.01753933917
A147: 450 | B147: 1.017267992 | C147: 0.00280374606 | D147: -0.01442380492 | E147: 1.01626 | F147: 0.00336 | G147: -0.01285680115 | H147: 1.022302605 | I147: 0.004681160967 | J147: -0.01753933917 | K147: 1.022302605 | L147: 0.004681160967 | M147: -0.01753933917
A148: 500 | B148: 1.017267992 | C148: 0.00280374606 | D148: -0.01442380492 | E148: 1.01626 | F148: 0.00336 | G148: -0.01285680115 | H148: 1.022302605 | I148: 0.004681160967 | J148: -0.01753933917 | K148: 1.022302605 | L148: 0.004681160967 | M148: -0.01753933917
A150: Table B2. Polyphase Induction Motor Coefficients, VFD Driven (kW)
A151: kW | B151: 2 POLE | E151: 4 POLE | H151: 6 POLE | K151: 8 POLE
B152: a | C152: b | D152: c | E152: a | F152: b | G152: c | H152: a | I152: b | J152: c | K152: a | L152: b | M152: c
A153: 1 | B153: 1.029684124 | C153: 0.01639267169 | D153: =1-(B153/(C153+1)) -> -0.01307708382 | E153: 1.037907038 | F153: 0.03189099683 | G153: =1-(E153/(F153+1)) -> -0.005830112717 | H153: 1.086677483 | I153: 0.06079567907 | J153: =1-(H153/(I153+1)) -> -0.02439848134 | K153: 1.086677483 | L153: 0.06079567907 | M153: =1-(K153/(L153+1)) -> -0.02439848134
A154: 1.1 | B154: 1.02993035 | C154: 0.01614940008 | D154: =1-(B154/(C154+1)) -> -0.01356193301 | E154: 1.038089217 | F154: 0.03130756045 | G154: =1-(E154/(F154+1)) -> -0.006575784822 | H154: 1.08513661 | I154: 0.0593100202 | J154: =1-(H154/(I154+1)) -> -0.02438057708 | K154: 1.08513661 | L154: 0.0593100202 | M154: =1-(K154/(L154+1)) -> -0.02438057708
A155: 1.5 | B155: 1.030915255 | C155: 0.01517631364 | D155: -0.01550365353 | E155: 1.038817935 | F155: 0.02897381494 | G155: -0.009566929282 | H155: 1.078973118 | I155: 0.05336738473 | J155: -0.02430845497 | K155: 1.078973118 | L155: 0.05336738473 | M155: -0.02430845497
A156: 2.2 | B156: 1.03263884 | C156: 0.01347341237 | D156: -0.01891063658 | E156: 1.04009319 | F156: 0.0248897603 | G156: -0.01483421024 | H156: 1.068187008 | I156: 0.04296777266 | J156: -0.02418026364 | K156: 1.068187008 | L156: 0.04296777266 | M156: -0.02418026364
A157: 3 | B157: 1.03460865 | C157: 0.01152723949 | D157: -0.02281837795 | E157: 1.041550626 | F157: 0.02022226928 | G157: -0.02090559779 | H157: 1.055860026 | I157: 0.03108250171 | J157: -0.02403059285 | K157: 1.055860026 | L157: 0.03108250171 | M157: -0.02403059285
A158: 3.7 | B158: 1.036332235 | C158: 0.009824338215 | D158: -0.02625000746 | E158: 1.042825882 | F158: 0.01613821464 | G158: -0.02626381577 | H158: 1.045073916 | I158: 0.02068288964 | J158: -0.02389677158 | K158: 1.045073916 | L158: 0.02068288964 | M158: -0.02389677158
A159: 4 | B159: 1.036186938 | C159: 0.009630444633 | D159: -0.02630318171 | E159: 1.042574762 | F159: 0.0157460666 | G159: -0.02641279734 | H159: 1.044295723 | I159: 0.01991053132 | J159: -0.02390914755 | K159: 1.044295723 | L159: 0.01991053132 | M159: -0.02390914755
A160: 5.5 | B160: 1.034969355 | C160: 0.00895871075 | D160: -0.0257796917 | E160: 1.040876019 | F160: 0.01453986034 | G160: -0.02595872214 | H160: 1.042540551 | I160: 0.01809574985 | J160: -0.02401031625 | K160: 1.042540551 | L160: 0.01809574985 | M160: -0.02401031625
A161: 7.5 | B161: 1.033345912 | C161: 0.008063065573 | D161: -0.02508061975 | E161: 1.038611028 | F161: 0.01293158533 | G161: -0.02535160632 | H161: 1.040200322 | I161: 0.01567604122 | J161: -0.02414577022 | K161: 1.040200322 | L161: 0.01567604122 | M161: -0.02414577022
A162: 11 | B162: 1.030504886 | C162: 0.006495686514 | D162: -0.02385425008 | E162: 1.034647295 | F162: 0.01011710407 | G162: -0.02428450172 | H162: 1.03610492 | I162: 0.01144155113 | J162: -0.02438437417 | K162: 1.03610492 | L162: 0.01144155113 | M162: -0.02438437417
A163: 15 | B163: 1.027306077 | C163: 0.004740603527 | D163: -0.02245900394 | E163: 1.030178044 | F163: 0.006953223885 | G163: -0.0230644483 | H163: 1.031480673 | I163: 0.006688717493 | J163: -0.02462723091 | K163: 1.031480673 | L163: 0.006688717493 | M163: -0.02462723091
A164: 18.5 | B164: 1.026568414 | C164: 0.004757296767 | D164: -0.0217078465 | E164: 1.028871291 | F164: 0.006443048061 | G164: -0.02228466189 | H164: 1.029844507 | I164: 0.006242260299 | J164: -0.0234558295 | K164: 1.029844507 | L164: 0.006242260299 | M164: -0.0234558295
A165: 22 | B165: 1.025830751 | C165: 0.004773990008 | D165: -0.02095671403 | E165: 1.027564538 | F165: 0.005932872237 | G165: -0.02150408453 | H165: 1.028208341 | I165: 0.005795803105 | J165: -0.02228338815 | K165: 1.028208341 | L165: 0.005795803105 | M165: -0.02228338815
A166: 30 | B166: 1.024144665 | C166: 0.004812145986 | D166: -0.01923993351 | E166: 1.024577673 | F166: 0.004766756067 | G166: -0.01971693108 | H166: 1.024468534 | I166: 0.004775329518 | J166: -0.01959960972 | K166: 1.024468534 | L166: 0.004775329518 | M166: -0.01959960972
A167: 37 | B167: 1.022669339 | C167: 0.004845532467 | D167: -0.01773785752 | E167: 1.021964166 | F167: 0.003746404419 | G167: -0.01814976546 | H167: 1.021196202 | I167: 0.00388241513 | J167: -0.01724682775 | K167: 1.021196202 | L167: 0.00388241513 | M167: -0.01724682775
A168: 45 | B168: 1.022248114 | C168: 0.004477255193 | D168: -0.01769164881 | E168: 1.020970696 | F168: 0.003493371871 | G168: -0.01741648199 | H168: 1.020557167 | I168: 0.003990620383 | J168: -0.01650069829 | K168: 1.020557167 | L168: 0.003990620383 | M168: -0.01650069829
A169: 55 | B169: 1.021783183 | C169: 0.003997114772 | D169: -0.01771525806 | E169: 1.019825939 | F169: 0.003221549544 | G169: -0.01655106971 | H169: 1.019909384 | I169: 0.004180845075 | J169: -0.01566305403 | K169: 1.019909384 | L169: 0.004180845075 | M169: -0.01566305403
A170: 75 | B170: 1.020852593 | C170: 0.003054686768 | D170: -0.01774370522 | E170: 1.017575115 | F170: 0.002692397783 | G170: -0.01484275447 | H170: 1.01865937 | I170: 0.004554368986 | J170: -0.01404105261 | K170: 1.01865937 | L170: 0.004554368986 | M170: -0.01404105261
A171: 90 | B171: 1.020127943 | C171: 0.003003957514 | D171: -0.01707270031 | E171: 1.017308818 | F171: 0.002828147757 | G171: -0.01443983228 | H171: 1.019395873 | I171: 0.004580000788 | J171: -0.01474832461 | K171: 1.019395873 | L171: 0.004580000788 | M171: -0.01474832461
A172: 110 | B172: 1.019161744 | C172: 0.00293631851 | D172: -0.01617792151 | E172: 1.016953756 | F172: 0.003009147723 | G172: -0.01390277234 | H172: 1.020377877 | I172: 0.004614176524 | J172: -0.0156912978 | K172: 1.020377877 | L172: 0.004614176524 | M172: -0.0156912978
A173: 132 | B173: 1.018098924 | C173: 0.002861915604 | D173: -0.01519352542 | E173: 1.016563187 | F173: 0.003208247685 | G173: -0.01331223024 | H173: 1.021458081 | I173: 0.004651769834 | J173: -0.01672849422 | K173: 1.021458081 | L173: 0.004651769834 | M173: -0.01672849422
A174: 150 | B174: 1.017267992 | C174: 0.00280374606 | D174: -0.01442380492 | E174: 1.016257833 | F174: 0.003363907655 | G174: -0.01285069693 | H174: 1.022302605 | I174: 0.004681160967 | J174: -0.01753933917 | K174: 1.022302605 | L174: 0.004681160967 | M174: -0.01753933917
A175: 160 | B175: 1.017267992 | C175: 0.00280374606 | D175: -0.01442380492 | E175: 1.016257833 | F175: 0.003363907655 | G175: -0.01285069693 | H175: 1.022302605 | I175: 0.004681160967 | J175: -0.01753933917 | K175: 1.022302605 | L175: 0.004681160967 | M175: -0.01753933917
A176: 185 | B176: 1.017267992 | C176: 0.00280374606 | D176: -0.01442380492 | E176: 1.016257833 | F176: 0.003363907655 | G176: -0.01285069693 | H176: 1.022302605 | I176: 0.004681160967 | J176: -0.01753933917 | K176: 1.022302605 | L176: 0.004681160967 | M176: -0.01753933917
A177: 200 | B177: 1.017267992 | C177: 0.00280374606 | D177: -0.01442380492 | E177: 1.016257833 | F177: 0.003363907655 | G177: -0.01285069693 | H177: 1.022302605 | I177: 0.004681160967 | J177: -0.01753933917 | K177: 1.022302605 | L177: 0.004681160967 | M177: -0.01753933917
A178: 220 | B178: 1.017267992 | C178: 0.00280374606 | D178: -0.01442380492 | E178: 1.016257833 | F178: 0.003363907655 | G178: -0.01285069693 | H178: 1.022302605 | I178: 0.004681160967 | J178: -0.01753933917 | K178: 1.022302605 | L178: 0.004681160967 | M178: -0.01753933917
A179: 250 | B179: 1.017267992 | C179: 0.00280374606 | D179: -0.01442380492 | E179: 1.016257833 | F179: 0.003363907655 | G179: -0.01285069693 | H179: 1.022302605 | I179: 0.004681160967 | J179: -0.01753933917 | K179: 1.022302605 | L179: 0.004681160967 | M179: -0.01753933917
A180: 300 | B180: 1.017267992 | C180: 0.00280374606 | D180: -0.01442380492 | E180: 1.016257833 | F180: 0.003363907655 | G180: -0.01285069693 | H180: 1.022302605 | I180: 0.004681160967 | J180: -0.01753933917 | K180: 1.022302605 | L180: 0.004681160967 | M180: -0.01753933917
A181: 330 | B181: 1.017267992 | C181: 0.00280374606 | D181: -0.01442380492 | E181: 1.016257833 | F181: 0.003363907655 | G181: -0.01285069693 | H181: 1.022302605 | I181: 0.004681160967 | J181: -0.01753933917 | K181: 1.022302605 | L181: 0.004681160967 | M181: -0.01753933917
A182: 375 | B182: 1.017267992 | C182: 0.00280374606 | D182: -0.01442380492 | E182: 1.016257833 | F182: 0.003363907655 | G182: -0.01285069693 | H182: 1.022302605 | I182: 0.004681160967 | J182: -0.01753933917 | K182: 1.022302605 | L182: 0.004681160967 | M182: -0.01753933917
A184: Table C1. VFD Performance Coefficienct (hp capacity)
A185: HP | B185: d | C185: e | D185: f
A186: 1 | B186: 0.9803 | C186: 0.04 | D186: -0.0131
A187: 1.5 | B187: 0.97995 | C187: 0.03855 | D187: -0.0118
A188: 2 | B188: 0.9796 | C188: 0.0371 | D188: -0.0105
A189: 3 | B189: 0.9789 | C189: 0.0342 | D189: -0.0079
A190: 5 | B190: 0.9775 | C190: 0.0284 | D190: -0.0027
A191: 7.5 | B191: 0.9781 | C191: 0.0253 | D191: -0.0004
A192: 10 | B192: 0.9787 | C192: 0.0222 | D192: 0.0019
A193: 15 | B193: 0.98185 | C193: 0.01985 | D193: 0.0007
A194: 20 | B194: 0.985 | C194: 0.0175 | D194: -0.0005
A195: 25 | B195: 0.9862 | C195: 0.0165 | D195: -0.0032
A196: 30 | B196: 0.9874 | C196: 0.0155 | D196: -0.0059
A197: 40 | B197: 0.98765 | C197: 0.01695 | D197: -0.0038
A198: 50 | B198: 0.9879 | C198: 0.0184 | D198: -0.0017
A199: 60 | B199: 0.9719 | C199: 0.0145 | D199: 0.0118
A200: 75 | B200: 0.9919 | C200: 0.0179 | D200: -0.0013
A201: 100 | B201: 0.9824 | C201: 0.0126 | D201: 0.0014
A202: 125 | B202: 0.982925 | C202: 0.0119 | D202: -0.0001
A203: 150 | B203: 0.98345 | C203: 0.0112 | D203: -0.0016
A204: 200 | B204: 0.9845 | C204: 0.0098 | D204: -0.0046
A205: 250 | B205: 0.9845 | C205: 0.0098 | D205: -0.0046
A206: 300 | B206: 0.9845 | C206: 0.0098 | D206: -0.0046
... 260 more rows

Sheet PSW_Sheet (hidden)
